Cogmind - Beta 16 @@@ ROGUE MODE // 2026.02.05 @ 01:53:15 Player: AngelSpirit Result: Destroyed by G-73 Enforcer with Heavy Laser Performance ------------- Evolutions (9) 4500 Regions Visited (33) 6600 Robots Destroyed (539) 2695 Value Destroyed (26131) 26131 Prototype IDs (105) 2100 Alien Tech Used (0) 0 Bonus (16282) 16282 TOTAL SCORE: 58308 Bonus ------- Triggered Max Security 1000 High Alert Combat Kills 5643 Follower Combat Kills 3539 Entered Garrisons 1400 Used RIF Installer 3500 Network Hubs Disabled 600 Aligned with FarCom 300 Built Enhanced Grunts 300 A7 Reached Mainframe 300 Met R17 at Cetus 500 Met R17 at Research 2000 Friendly Fire -2800 Cogmind --------- Core Integrity 0/1600 Matter 202/300 Energy 50/600 System Corruption 43% Temperature Cool (19) Movement Immobile (Siege) Location -1/Access Parts ------- > --- POWER (2) -------- (None) > --- PROPULSION (8) --- Biometal Heavy Treads > --- UTILITY (12) ----- Advanced Energy Well Improved Targeting Computer > --- WEAPON (3) ------- Dispersion Rifle > --- INVENTORY (5) ---- Latent Energy Streamer Enhanced Nova Cannon Peak State ------------ > --- POWER ------------ Particle Reactor Quantum Reactor > --- PROPULSION ------- Combat Antigrav System Combat Antigrav System Combat Antigrav System Antigrav Array Cooled Linear Gravjet Combat Linear Gravjet > --- UTILITY ---------- Advanced Cryofiber Web Advanced Heat Sink Advanced Heat Sink Large Storage Unit Quantum Capacitor Advanced Reaction Control System Centrium Medium Armor Plating Medium Regenerative Plating Advanced Hacking Suite Relay Coupler [Grunt] > --- WEAPON ----------- Compact HERF Cannon Experimental Thermic Cannon Advanced Remote Datajack > --- INVENTORY -------- Light Quantum Reactor Combat Antigrav System Combat Antigrav System Antigrav Array Antigrav Array Advanced Particle Accelerator Experimental EM Shield Latent Energy Streamer Gamma Bomb Array Rocket Array [Rating: 175] Favorites ----------- Power Micro Nuclear Core Engine Heavy Ion Engine Power Core Micro Nuclear Core Reactor Quantum Reactor Propulsion Cooled Linear Gravjet Treads Biometal Heavy Treads Leg Centrium Leg Wheel Wheel Hover Unit Cooled Linear Gravjet Flight Unit Improved VTOL Module Utility Hacking Suite Device Experimental Heat Sink Storage Large Storage Unit Processor Experimental Targeting Computer Hackware Hacking Suite Protection Improved Medium Armor Plating Weapon Compact Linear Accelerator Energy Gun Cooled Pulse Rifle Energy Cannon Compact HERF Cannon Ballistic Gun Advanced KE Penetrator Ballistic Cannon Compact Linear Accelerator Launcher Gamma Bomb Array Special Weapon Remote Datajack Impact Weapon Hammer Slashing Weapon Nanosword Piercing Weapon Makeshift Spear Special Melee Weapon Datajack Build | -11 -10 -10 -9 -9 -9 -8 -8 -8 -8 -8 -7 -7 -7 -7 -7 -7 -7 -7 -5 -5 -4 -4 -4 -4 -4 -4 -4 -4 -3 -3 -3 -2 -1 ------- Run | Yrd Mat Min Mat Min Exi Min Mat Gar Mat Gar Fac Was Fac Gar Fac Sto Gar Rec Fac Gar Fac Was Fac Ext Cet Arc Hub Gar Res Gar Tes Res Acc Slots Evolved 18 | . . . 2 . . . 2 . . . 2 . . . . . . . 4 . 2 . . . . . . . 2 . . 2 2 Power 1 | . . . . . . . . . . . . . . . . . . . 1 . . . . . . . . . . . . . . Propulsion 6 | . . . 1 . . . 1 . . . . . . . . . . . 1 . 1 . . . . . . . 1 . . . 1 Utility 10 | . . . 1 . . . 1 . . . 2 . . . . . . . 1 . 1 . . . . . . . 1 . . 2 1 Weapon 1 | . . . . . . . . . . . . . . . . . . . 1 . . . . . . . . . . . . . . Parts Attached 411 | 7 8 4 25 3 1 9 3 17 9 2 16 5 13 15 11 13 5 5 38 21 29 2 11 6 14 6 3 21 41 8 1 13 26 Power 51 | 1 2 . 3 1 . 1 . 2 2 1 1 1 2 1 1 1 1 . 4 2 3 1 2 1 4 . . 1 5 1 1 2 3 Engine 13 | 1 2 . 3 1 . 1 . . . 1 . . 2 . 1 . . . 1 . . . . . . . . . . . . . . Core 13 | . . . . . . . . 2 2 . 1 1 . 1 . 1 1 . 1 . 1 . 2 . . . . . . . . . . Reactor 25 | . . . . . . . . . . . . . . . . . . . 2 2 2 1 . 1 4 . . 1 5 1 1 2 3 Propulsion 114 | 2 . . 12 1 . 3 1 12 . . 7 1 2 6 2 3 1 2 15 . 2 . 2 1 2 1 1 10 10 2 . 5 8 Treads 1 | . . . . . . . . . . . . . . . . . . . . . . . . . . . . . . . . . 1 Leg 22 | . . . . . . . . 7 . . . . . 4 1 . . . . . . . . . . . . 9 1 . . . . Wheel 20 | 2 . . 11 1 . 3 1 1 . . . . . . . . . . . . . . . . . . . . . . . 1 . Hover 58 | . . . . . . . . . . . 4 1 2 2 1 3 1 2 15 . 2 . 2 1 2 1 1 1 8 2 . 4 3 Flight 13 | . . . 1 . . . . 4 . . 3 . . . . . . . . . . . . . . . . . 1 . . . 4 Utility 165 | 2 2 2 6 1 1 1 2 3 3 1 4 2 6 5 6 3 3 3 13 16 18 1 4 4 5 5 2 6 20 4 . 5 6 Device 60 | 1 . 1 1 1 . . . 1 . . . 1 2 . 2 . . . 3 7 9 1 1 1 2 4 1 1 12 3 . 1 4 Storage 11 | 1 1 . 1 . . . . 1 . . . . 1 . 1 . . . 1 . 2 . . . . . . . 1 . . . 1 Processor 18 | . . 1 . . . . 1 . . . . . . . . . 1 3 2 1 3 . 1 1 . . . . 3 . . . 1 Hackware 39 | . . . 1 . . . . . 3 1 3 . 1 4 2 . 1 . 4 6 1 . 1 . . 1 1 2 3 1 . 3 . Protection 37 | . 1 . 3 . 1 1 1 1 . . 1 1 2 1 1 3 1 . 3 2 3 . 1 2 3 . . 3 1 . . 1 . Artifact . | . . . . . . . . . . . . . . . . . . . . . . . . . . . . . . . . . . Weapon 81 | 2 4 2 4 . . 4 . . 4 . 4 1 3 3 2 6 . . 6 3 6 . 3 . 3 . . 4 6 1 . 1 9 Energy Gun 19 | 1 . . . . . . . . 2 . 1 . . 1 . 5 . . 2 1 2 . . . . . . 1 1 . . . 2 Energy Cannon 10 | . . . 2 . . 1 . . . . . . . . . . . . 1 . 1 . . . . . . . 1 . . 1 3 Ballistic Gun 10 | 1 . . . . . . . . 1 . 1 . . . . . . . . . 2 . . . 2 . . . 1 . . . 2 Ballistic Cannon 17 | . 2 1 2 . . . . . . . . . 1 1 1 . . . 1 2 . . 1 . 1 . . 3 . . . . 1 Launcher 7 | . 1 . . . . 1 . . . . . . . 1 1 1 . . . . . . 1 . . . . . 1 . . . . Special Weapon 9 | . . . . . . . . . 1 . . . 1 . . . . . 2 . 1 . 1 . . . . . 1 1 . . 1 Impact Weapon 1 | . . . . . . 1 . . . . . . . . . . . . . . . . . . . . . . . . . . . Slashing Weapon 6 | . . . . . . 1 . . . . 2 1 1 . . . . . . . . . . . . . . . 1 . . . . Piercing Weapon 1 | . . 1 . . . . . . . . . . . . . . . . . . . . . . . . . . . . . . . Special Melee Weapon 1 | . 1 . . . . . . . . . . . . . . . . . . . . . . . . . . . . . . . . Unidentified Prototypes 53 | . . 1 3 1 . . . . 4 . 1 3 3 . 2 5 . . . 2 12 2 . . 4 . . . 9 . . 1 . Corrupted Parts 3 | . . . . . . . . . . . . . . . . . . . 1 . . . . . . . . . . . . . 2 System Corruption 16 | . . . . . . . . . . . . . . . . . . . 2 . . . . . . . . . . . . . 14 Parts Lost 110 | . . 3 9 . . 5 . 10 2 1 3 . . 7 . . . . 6 2 2 . . 4 . . 3 5 2 . 1 24 21 Power 18 | . . 1 1 . . . . 1 1 1 . . . 1 . . . . 1 . 1 . . 2 . . . . 1 . . 4 3 Propulsion 45 | . . . 5 . . 2 . 5 1 . 3 . . 5 . . . . 2 . . . . 2 . . 3 3 . . . 6 8 Utility 28 | . . 1 1 . . 1 . 3 . . . . . 1 . . . . 3 2 1 . . . . . . 1 . . 1 10 3 Weapon 19 | . . 1 2 . . 2 . 1 . . . . . . . . . . . . . . . . . . . 1 1 . . 4 7 Highest Loss Streak 21 | . . 3 2 . . 2 . 5 2 1 3 . . 4 . . . . 3 1 2 . . 2 . . 3 3 1 . 1 21 11 To Critical Strikes . | . . . . . . . . . . . . . . . . . . . . . . . . . . . . . . . . . . Average Backups 12 | . 6 8 14 20 19 18 17 16 9 9 9 10 9 9 13 11 10 10 12 14 13 13 13 13 13 14 14 13 13 14 15 11 5 Power . | . . . . 1 1 1 2 1 1 . . . 1 . . . . 1 1 . 1 1 1 1 1 1 1 1 1 1 1 1 . Propulsion 1 | . 2 2 2 7 6 5 5 5 2 3 1 1 . . 2 1 1 . 2 1 . . . . . . . 1 1 2 2 3 . Utility 4 | . 2 3 6 8 8 7 6 5 3 4 4 5 4 4 7 4 4 4 3 2 4 4 4 4 5 5 5 4 6 6 9 4 1 Weapon 4 | . 2 2 3 3 3 3 3 3 1 1 1 2 3 4 4 4 4 4 5 6 6 6 6 6 5 5 5 5 4 3 3 2 3 Tool/Special . | . . . . . . . . . . . . . . . . . . . . . . . . . . . . . . . . . . Unused Backups 54 | . 1 . 4 2 1 . 2 4 . . 1 1 2 . 8 2 . 1 3 5 3 1 . 2 4 1 . . 4 . . 2 . Power 8 | . . . . . . . 1 . . . 1 . . . . . . . . 3 . . . 1 . . . . 1 . . 1 . Propulsion 11 | . . . . 1 1 . . 1 . . . . . . 6 . . 1 . . . . . . . . . . 1 . . . . Utility 24 | . . . 3 . . . 1 2 . . . 1 1 . 1 1 . . 2 1 3 1 . 1 4 . . . 1 . . 1 . Weapon 11 | . 1 . 1 1 . . . 1 . . . . 1 . 1 1 . . 1 1 . . . . . 1 . . 1 . . . . Tool/Special . | . . . . . . . . . . . . . . . . . . . . . . . . . . . . . . . . . . Average Slot Usage (%) 91 | . 99 88 94 100 99 97 96 95 98 95 88 99 100 90 100 99 99 100 97 97 99 100 99 88 88 98 96 88 86 86 90 76 21 Engine 2 | . 14 3 9 11 11 11 9 1 . 6 . . . . 1 1 . . . . . . . . . . . . . . . . . Core 2 | . . . . . . . . 7 8 2 6 7 7 6 5 5 7 7 7 . . . 4 . . . . . . . . . . Reactor 3 | . . . . . . . . . . . . . . . . . . . 1 11 9 10 5 4 5 10 10 9 8 9 9 7 1 Leg 3 | . . . . . . . . 17 . . . . . 5 30 7 . . . . . . . . . . . 21 10 . . . . Wheel 6 | . 28 28 29 33 33 32 36 12 . . . . . . . . . . . . . . . . . . . . . . . . . Hover 16 | . . . . . . . . . . . 6 30 30 19 . 22 30 30 28 29 30 31 30 27 27 31 28 3 14 24 28 23 9 Flight 1 | . . . . . . . . 2 36 36 23 . . . . . . . . . . . . . . . . . . . . . 1 Device 7 | . 13 10 3 1 . 5 3 2 . . . 6 1 . 2 . . . 5 10 10 10 10 10 10 14 15 11 12 16 19 15 4 Storage 6 | . 14 14 11 11 11 11 9 9 9 9 7 7 7 7 7 7 7 7 5 5 5 5 5 5 5 5 5 5 4 4 4 4 2 Processor 4 | . . 1 . . . . 5 9 . . . . . . . . 4 13 5 5 9 10 10 11 15 11 10 5 6 4 4 . . Hackware 12 | . . . 10 11 11 11 9 9 25 23 29 23 29 30 30 30 25 17 16 9 10 10 10 5 4 3 5 5 6 2 . 8 . Protection 5 | . . 1 7 9 10 5 6 5 . . . 6 6 4 4 6 7 6 4 5 4 5 4 5 5 5 3 12 6 9 9 4 . Energy Gun 1 | . 6 . . . . . . . . . . 7 . 2 6 6 7 7 4 6 . . . . . . . . . . . . . Energy Cannon 1 | . . . 4 11 11 7 . . . . . . . . . . . . . . . . . . . . . . 3 6 9 6 1 Ballistic Gun 1 | . 6 . . . . . . . . . . . . . . . . . . . 4 2 4 4 8 10 10 3 . . . . . Ballistic Cannon 6 | . 13 27 17 11 11 8 . . . . . . . 1 6 7 6 7 4 8 9 10 10 10 4 4 4 4 1 . . . . Special Weapon 1 | . . . . . . . . . 2 . . . 6 4 . . . . 4 . . 2 . . . . . 1 3 2 4 3 . Slashing Weapon 1 | . . . . . . 2 9 8 . . 5 7 7 5 . . . . . . . . . . . . . . 1 1 . . . Peak Build Rating 175 | 7 8 18 23 26 22 26 25 37 42 40 53 62 62 61 60 57 56 57 117 135 158 156 154 150 149 149 150 145 161 159 155 175 98 Average Rating 85 | 5 7 11 18 21 21 21 23 27 38 36 42 58 57 53 57 53 55 56 81 127 151 152 149 136 135 145 144 136 155 157 154 145 49 On Entrance 76 | . 7 8 15 21 21 22 21 24 34 39 34 53 62 57 57 57 54 56 56 117 129 153 151 150 138 149 148 125 142 159 155 149 30 Avg Prop Armor Cover (%) 11 | . . . . . . . 3 10 . . . . . 13 . . . . . . . . 3 . . . . 2 3 . . 8 16 Naked Turns 60 | . . . . . . . . . . . . . . . . . . . . . . . . . . . . . . . . . 60 Heaviest Build 111 | 15 32 34 62 62 62 62 59 59 20 20 28 33 36 38 48 45 31 31 65 70 80 75 73 70 79 79 79 111 111 89 89 105 60 Greatest Support 180 | 32 32 32 32 30 30 36 36 50 20 20 36 37 37 66 69 69 32 33 70 70 84 78 78 75 90 90 90 150 180 105 105 107 75 Greatest Overweight (x) 5 | . . 1 3 2 2 2 1 3 1 . 1 . . 5 . 1 . . 1 . 1 . 1 1 1 1 . 2 1 . . . 1 Average Overweight (x) . | . . . 1 1 2 1 1 . . . . . . . . . . . . . . . . . . . . . . . . . . Largest Inventory Capacity 20 | 8 15 15 20 20 20 20 20 20 10 10 10 10 10 10 15 15 10 10 15 15 15 15 15 15 15 15 15 15 15 15 15 15 15 Average Capacity 14 | 7 13 15 18 20 20 20 20 19 10 10 10 10 10 10 14 11 10 10 14 15 15 15 15 15 15 15 15 15 15 15 15 15 11 Most Carried 20 | 2 9 9 20 20 20 20 19 20 10 10 10 10 10 10 15 15 10 10 15 15 15 15 15 15 15 15 15 15 15 15 15 15 8 Average Carried 13 | . 6 8 14 19 18 18 17 16 9 9 9 9 9 9 13 11 9 9 12 14 14 14 14 14 14 14 14 14 14 14 15 12 5 Final Capacity 20 | 8 15 15 20 20 20 20 20 10 10 10 10 10 10 10 15 10 10 10 15 15 15 15 15 15 15 15 15 15 15 15 15 15 5 Final Carried 20 | 2 9 9 20 20 19 20 17 10 10 9 10 10 10 10 14 10 10 10 15 15 15 15 15 15 15 15 15 15 15 15 15 6 2 Class Distribution -------------------- 18% | Scavenger-Sprinter 18% | Mutant 15% | Hacker-Mutant 13% | Scavenger-Mutant 5% | Scavenger-Gunner 5% | Hacker-Skirmisher 4% | Scavenger-Tank 3% | Scavenger-Gladiator Dominant Class ---------------- Mutant | -10/Materials Mutant | -10/Mines Scavenger-Mutant | -9/Materials Mutant | -9/Mines Mutant | -9/Exiles Mutant | -8/Mines Scavenger-Gladiator | -8/Materials Scavenger-Gladiator | -8/Garrison Bothacker-Sprinter | -8/Materials Bothacker-Sprinter | -8/Garrison Hacker-Sprinter | -7/Factory Hacker-Mutant | -7/Waste Hacker-Mutant | -7/Factory Hacker-Mutant | -7/Garrison Scavenger-Mutant | -7/Factory Hacker-Mutant | -7/Storage Hacker-Mutant | -7/Garrison Hacker-Mutant | -7/Recycling Hacker-Skirmisher | -5/Factory Sprinter | -5/Garrison Scavenger-Sprinter | -4/Factory Scavenger-Sprinter | -4/Waste Scavenger-Sprinter | -4/Factory Scavenger-Sprinter | -4/Extension Scavenger-Sprinter | -4/Cetus Scavenger-Sprinter | -4/Archives Scavenger-Gunner | -4/Hub_04(d) Scavenger-Tank | -4/Garrison Scavenger-Mutant | -3/Research Scavenger-Gunner | -3/Garrison Scavenger-Gunner | -3/Testing Scavenger-Skirmisher | -2/Research Mutant | -1/Access Resources | -11 -10 -10 -9 -9 -9 -8 -8 -8 -8 -8 -7 -7 -7 -7 -7 -7 -7 -7 -5 -5 -4 -4 -4 -4 -4 -4 -4 -4 -3 -3 -3 -2 -1 ----------- Run | Yrd Mat Min Mat Min Exi Min Mat Gar Mat Gar Fac Was Fac Gar Fac Sto Gar Rec Fac Gar Fac Was Fac Ext Cet Arc Hub Gar Res Gar Tes Res Acc Matter Collected 17621 | 296 382 84 1254 88 . 322 30 195 175 55 174 131 347 578 139 540 338 215 1240 1095 1980 23 1278 1400 574 435 62 1750 1378 319 . 273 471 Remotely . | . . . . . . . . . . . . . . . . . . . . . . . . . . . . . . . . . . Salvage Created 21970 | 95 540 26 1356 177 . 618 100 760 254 249 296 . 1013 632 234 455 282 534 1264 1169 1364 . 1003 1634 534 456 433 1536 1202 1330 . 1194 1230 Parts 1006 | 9 48 . 95 11 . 33 6 34 8 11 18 . 60 35 15 18 11 38 46 47 42 . 46 57 27 34 25 47 53 38 . 46 48 Haulers Intercepted 29 | . 2 . 6 . . . 1 . 4 . . . 4 . 2 . . . 5 . 4 . . . . . . . . . . 1 . Recyclers Shooed 11 | . 1 . 2 . . . . . . . . . 1 . 1 2 . . . . . . 1 . . . . . 1 . . 1 1 Parts Field Recycled . | . . . . . . . . . . . . . . . . . . . . . . . . . . . . . . . . . . Retrieved Matter . | . . . . . . . . . . . . . . . . . . . . . . . . . . . . . . . . . . Parts Self-Destructed . | . . . . . . . . . . . . . . . . . . . . . . . . . . . . . . . . . . Prevented . | . . . . . . . . . . . . . . . . . . . . . . . . . . . . . . . . . . Parts Restored . | . . . . . . . . . . . . . . . . . . . . . . . . . . . . . . . . . . Kills | -11 -10 -10 -9 -9 -9 -8 -8 -8 -8 -8 -7 -7 -7 -7 -7 -7 -7 -7 -5 -5 -4 -4 -4 -4 -4 -4 -4 -4 -3 -3 -3 -2 -1 ------- Run | Yrd Mat Min Mat Min Exi Min Mat Gar Mat Gar Fac Was Fac Gar Fac Sto Gar Rec Fac Gar Fac Was Fac Ext Cet Arc Hub Gar Res Gar Tes Res Acc Combat Hostiles Destroyed 369 | . 16 1 27 6 . 15 1 16 . 5 4 . 3 25 5 8 10 8 20 22 13 . 12 27 5 1 7 38 22 23 . 16 13 Melee 35 | . . . . . . . . 15 . 5 3 . 3 9 . . . . . . . . . . . . . . . . . . . Guns 59 | . 3 . . . . . . . . . . . . 2 . 2 2 5 7 15 5 . 1 1 2 . 7 2 . . . . 5 Cannons 157 | . 1 1 26 6 . 10 . . . . . . . . 2 6 5 3 6 7 7 . 5 14 3 1 . 28 10 11 . 2 3 AOE 90 | . 12 . . . . 4 . . . . . . . 14 3 . 3 . 4 . 1 . 6 12 . . . 8 7 6 . 9 1 Classes Destroyed 25 | 1 8 . 3 1 . 1 . 2 . . . . . 1 . . . 2 . 1 . . . 1 . . 1 . 2 1 . . . Worker 25 | . 4 . 8 . . 1 . . . . . . . . 2 . . . . . 1 . 2 . . . 1 . 1 . . 2 3 Builder 25 | . 3 . 4 . . . . . . . . . . . 1 . . 1 . . . . 3 1 . . . . 2 . . 9 1 Tunneler 8 | 5 . . . . . . . . . . . . 1 . . . . . . . . . 1 . . . . . . . . . 1 Hauler 29 | . 2 . 6 . . . 1 . 4 . . . 4 . 2 . . . 5 . 4 . . . . . . . . . . 1 . Recycler 22 | . 1 . 1 . . 2 . . . . . . 5 . . 1 . . . . 1 . 4 4 . . . . . . . 1 2 Mechanic 2 | . . . 1 . . . . . . . . . . . . . . . . . . . . . . . . . . . . 1 . Operator 25 | . 2 . 2 . . . . . . . 2 . 5 . . . . . . . 2 . 1 1 . 9 1 . . . . . . Watcher 33 | . 2 . 5 . . . . . 3 . 1 . 3 . . 2 . . 2 . 5 . 2 3 2 . . . 1 . . . 2 Swarmer 84 | . 12 . 3 . . 2 . . . . . . . 11 3 . 3 1 5 . . . 4 5 . . 2 10 7 7 . 4 5 Cutter 1 | . . . . . . . . . . . . . . . . . . . . . . . . . . . . . . 1 . . . Saboteur 2 | . . . . . . . . . . . . . . . . . . . . . . . . 2 . . . . . . . . . Grunt 129 | . 4 . 14 4 . 10 . 11 . 1 2 . 1 8 . 4 3 . 3 15 5 . 1 10 . . 3 18 3 3 . 4 2 Brawler 4 | . . . . . . 1 . . . . . . . . . . . . 1 . . . . . . . . 1 . . . 1 . Duelist 13 | . . . 1 . . 2 . . . . . . . . . . . . 1 . 2 . . 1 . . . . . 4 . 2 . Protector 1 | . . . . . . . . . . . . . . . . . . . . . . . . . . . 1 . . . . . . Sentry 63 | . . . 9 . . . 1 2 . 3 1 . . 2 1 3 1 3 3 5 4 . 3 5 . 1 . 5 4 5 . 1 1 Specialist 5 | . . . . . . . . . . . . . . . . . . . . 1 . . . 1 . . . 2 . 1 . . . Hunter 24 | . . . . . . . . 1 . 1 . . . . 1 . . 1 2 1 1 . 2 1 . . . 1 6 2 . 2 2 Programmer 27 | . . . . . . . . 2 . . 1 . 2 3 . 1 3 . 5 . 1 . 2 1 . . . . . 1 . 2 3 Behemoth 3 | . . . . . . . . . . . . . . 1 . . . . . . . . . 1 . . . 1 . . . . . Cetus Guard 5 | . . . . . . . . . . . . . . . . . . . . . . . . . 5 . . . . . . . . Lightning 1 | . . . . . . . . . . . . . . . . . . . . . . . . . . . 1 . . . . . . Striker 1 | . . . . . . . . . . . . . . . . . . . . . . . . . . . . . 1 . . . . Executioner 1 | . . . . . . . . . . . . . . . . . . . . . . . . . . . . . 1 . . . . Scientist 2 | . . . . . . . . . . . . . . . . . . 2 . . . . . . . . . . . . . . . Scrapper 3 | . . . . . . . . . . . . . . . . . . 3 . . . . . . . . . . . . . . . Assembled 2 | . . . . 2 . . . . . . . . . . . . . . . . . . . . . . . . . . . . . Guerrilla 1 | . . . . . . . . . . . . . . . . . . . . . . . . 1 . . . . . . . . . Best Kill Streak 17 | 3 10 1 8 2 . 4 1 4 3 2 2 . 3 11 5 3 6 2 5 3 5 . 12 10 4 5 9 8 6 5 . 17 7 Combat Bots Only 11 | . 6 1 5 2 . 4 1 4 . 2 2 . 1 11 3 2 6 2 4 3 4 . 6 8 3 1 7 8 6 5 . 5 4 Max Kills in Single Turn 7 | 1 3 1 2 1 . 1 1 2 1 1 1 . 1 4 3 1 2 2 2 1 2 . 5 3 1 1 1 4 2 2 . 7 4 Gunslinging . | . . . . . . . . . . . . . . . . . . . . . . . . . . . . . . . . . . Exploded 4 | . 3 . . . . 1 . . . . . . . 4 2 . 2 . 2 . 1 . 3 3 . . . 4 2 2 . 3 1 Melee 2 | . . . . . . . . 2 . 1 1 . 1 1 . . . . . . . . . . . . . . . . . . . Uniques/NPCs Destroyed 2 | . . 1 . . . . . . . . . . . . . . . . . . . . . . 1 . . . . . . . . YI-UF0 (-10/Mines) A7 (-4/Cetus) Combat | -11 -10 -10 -9 -9 -9 -8 -8 -8 -8 -8 -7 -7 -7 -7 -7 -7 -7 -7 -5 -5 -4 -4 -4 -4 -4 -4 -4 -4 -3 -3 -3 -2 -1 -------- Run | Yrd Mat Min Mat Min Exi Min Mat Gar Mat Gar Fac Was Fac Gar Fac Sto Gar Rec Fac Gar Fac Was Fac Ext Cet Arc Hub Gar Res Gar Tes Res Acc Hostile Shots Fired 2226 | . 46 28 129 11 . 65 10 120 27 62 41 . 11 148 23 81 36 64 149 99 49 . 36 69 3 4 79 175 122 60 14 202 263 Missed 737 | . 6 8 36 3 . 17 5 34 8 22 7 . 5 47 9 41 11 39 56 40 17 . 19 29 2 2 14 42 49 23 3 68 75 Deflected 13 | . . . . . . . . . . . . . . . . . . . . . . . . . . . . 13 . . . . . Hits 1489 | . 40 20 93 8 . 48 5 86 19 40 34 . 6 101 14 40 25 25 93 59 32 . 17 40 1 2 65 133 73 37 11 134 188 Melee 6 | . . . 2 . . . . . . . . . . . . . . . 1 . . . . 1 . . . . 1 . . 1 . Projectile 1483 | . 40 20 91 8 . 48 5 86 19 40 34 . 6 101 14 40 25 25 92 59 32 . 17 39 1 2 65 133 72 37 11 133 188 AOE 15 | . . 13 1 . . . . 1 . . . . . . . . . . . . . . . . . . . . . . . . . Critical Strikes 90 | . . 1 2 1 . 2 . 5 . 2 . . . 4 . . 2 . 4 2 . . 2 2 . . 11 2 4 . . 13 31 Part Disruptions 8 | . . . . . . . . . . . . . . . . . . . . . . . . 1 . . 1 1 . 1 . . 4 Damage Taken 27160 | . 397 512 1233 125 . 787 80 1357 205 513 341 . 118 1238 143 331 262 267 1916 857 667 . 853 790 49 50 922 2093 1827 794 297 3966 4170 Core 5076 | . 120 90 146 39 . 94 . 234 79 221 150 . . 183 30 19 49 19 200 134 62 . 91 84 49 . 131 140 217 86 83 714 1612 Absorbed by Shields 1681 | . . . . . . . . . . 84 . . . 358 . . 113 20 48 366 . . . 244 24 . . 324 . 94 . 6 . Redirected to Shielding 99 | . . . . . . . . . . . . . . . . . . . . . . . . . . . . . . 47 52 . . Ignored by Resistances 1031 | . . . . . . . . . . . . . . . . 24 . . 22 36 13 . . . . . 901 . . . . 35 . Regen/Repaired (Parts) 1730 | . 23 . . . . . . . 73 . . 131 . . . . . . 191 . 55 . 13 . 20 120 22 510 194 281 . 97 . Core Remaining (%) 46 | 100 . 16 . . . 30 . . . 2 . . . . . . . 35 . 66 . . . . . . . 51 . . 70 50 . Volleys Fired 1429 | 10 41 8 129 12 . 59 . . 4 3 . 9 20 32 16 40 31 24 170 83 75 2 74 73 43 33 18 112 90 78 . 70 70 Largest 3 | 2 2 2 2 2 . 2 . . 1 1 . 1 1 2 2 2 2 2 2 3 3 1 3 3 2 3 3 2 1 2 . 1 2 Hottest 246 | 60 60 60 98 98 . 98 . . 5 5 . 80 80 124 124 120 60 100 205 246 210 7 154 154 89 121 121 105 120 174 . 120 174 Shots Fired 2177 | 12 71 16 253 24 . 85 . . 4 3 . 9 20 38 25 62 59 46 256 155 157 2 119 159 51 71 50 119 90 79 . 70 72 Gun 684 | 12 36 . . . . . . . . . . 9 1 11 9 23 29 25 101 100 45 . 32 55 42 63 36 22 . . . . 33 Cannon 1345 | . 25 16 253 24 . 80 . . . . . . . 5 14 39 28 21 148 49 109 . 81 93 9 8 14 92 67 71 . 60 39 Launcher 73 | . 10 . . . . 5 . . . . . . . 16 2 . 2 . 3 . . . 5 9 . . . 2 7 6 . 6 . Special 75 | . . . . . . . . . 4 3 . . 19 6 . . . . 4 6 3 2 1 2 . . . 3 16 2 . 4 . Kinetic 1380 | 10 43 16 217 12 . 38 . . . . . . . 5 14 39 28 21 144 49 143 . 113 148 51 71 50 114 40 . . . 14 Thermal 562 | . . . 36 12 . 42 . . . . . 9 1 11 9 23 29 25 105 100 11 . . . . . . . 12 37 . 50 50 Explosive 57 | . 10 . . . . 5 . . . . . . . 16 2 . 2 . 3 . . . 5 9 . . . 2 . . . 3 . Electromagnetic 103 | 2 18 . . . . . . . . . . . . . . . . . . . . . . . . . . . 22 40 . 13 8 Robot Hit Streak 25 | 3 7 15 24 7 . 14 . . 2 3 . 14 7 9 11 9 22 22 12 18 12 6 22 8 11 12 7 25 12 13 . 15 8 Robot Miss Streak 7 | 1 4 5 7 1 . 3 . . 1 1 . 1 3 2 4 3 3 3 4 5 4 . 3 4 6 3 7 2 4 2 . 3 4 Penetration Max 2 | . . . . . . . . . . . . . . . . . . . . . 1 . 1 2 1 1 1 1 1 . . . . Secondary Targets . | . . . . . . . . . . . . . . . . . . . . . . . . . . . . . . . . . . Capacitor 150 | . . . . . . . . . . . . . . . . . . . . . . . . . . . . . 27 70 . 53 . Shots Hit Robots 1493 | 9 31 15 161 17 . 55 6 45 18 31 22 9 53 56 17 37 41 34 135 77 73 2 60 91 36 49 26 89 62 54 . 43 39 Core Hits 916 | 5 34 2 60 8 . 28 1 17 4 6 9 1 16 40 15 24 20 19 57 36 45 . 36 84 17 22 19 45 44 56 . 111 35 Critical Kills 28 | . . . 1 . . 1 . 4 1 . . . . . . . . . . 1 . . . 1 4 5 3 6 . . . . 1 Critical Parts Destroyed 34 | . . . . . . . 1 3 2 3 . . . . . . . . . 6 1 . 1 1 4 4 2 5 . . . . 1 Critical Strikes 180 | . 1 1 9 . . 3 1 8 3 4 1 . 4 5 . 2 1 . 16 9 5 . 8 8 12 14 5 26 12 10 . 10 2 Burn 39 | . . . . . . . . . . . . . . . . 1 . . 14 . . . . . . . . . 5 9 . 10 . Meltdown 3 | . . . 1 . . 1 . . . . . . . . . . . . . . . . . . . . . . . . . . 1 Destroy 64 | . . . . . . . . . . . . . . . . . . . . 9 1 . 1 2 12 14 5 19 . . . . 1 Blast 46 | . 1 1 8 . . 2 . . . . . . . . . 1 1 . 2 . 4 . 7 6 . . . 7 6 . . . . Corrupt 2 | . . . . . . . . . . . . . . . . . . . . . . . . . . . . . 1 1 . . . Smash 14 | . . . . . . . 1 7 3 3 . . . . . . . . . . . . . . . . . . . . . . . Sever 11 | . . . . . . . . 1 . . 1 . 4 5 . . . . . . . . . . . . . . . . . . . Impale 1 | . . . . . . . . . . 1 . . . . . . . . . . . . . . . . . . . . . . . Melee Attacks 326 | . . 1 1 . . 3 6 73 36 41 37 . 72 46 . . . . . . . . . . . . . . 9 1 . . . Impact 125 | . . . . . . 2 5 54 23 27 14 . . . . . . . . . . . . . . . . . . . . . . Slashing 161 | . . . . . . 1 1 15 . . 16 . 72 46 . . . . . . . . . . . . . . 9 1 . . . Piercing 40 | . . 1 1 . . . . 4 13 14 7 . . . . . . . . . . . . . . . . . . . . . . Sneak Attacks 32 | . . . . . . 2 1 3 6 3 1 . 14 2 . . . . . . . . . . . . . . . . . . . Combat Hostiles 5 | . . . . . . . . 1 . 3 . . . 1 . . . . . . . . . . . . . . . . . . . Follow-up Attacks 20 | . . . . . . . 1 7 3 7 2 . . . . . . . . . . . . . . . . . . . . . . Damage Inflicted 62388 | 121 1301 266 3338 329 . 1643 201 1361 609 864 798 292 2698 3741 866 988 1264 816 3439 2472 3980 . 2903 6152 1009 1321 897 5093 3174 2720 . 4631 3101 Guns 12134 | 121 259 . . . . . . . . . . 292 24 279 220 501 376 499 1379 1563 984 . 667 1218 837 1190 761 342 . . . . 622 Cannons 26973 | . 237 266 3338 329 . 964 . . . . . . . 120 244 484 616 317 1710 909 2362 . 1341 2427 172 131 136 4046 2484 1914 . 1346 1080 Explosions 14915 | . 805 . . . . 519 . . . . . . . 1817 402 . 272 . 350 . 634 . 895 2507 . . . 705 640 806 . 3164 1399 Melee 8192 | . . . . . . 160 201 1361 609 864 798 . 2674 1525 . . . . . . . . . . . . . . . . . . . Ramming 174 | . . . . . . . . . . . . . . . . 3 . . . . . . . . . . . . 50 . . 121 . Kinetic 26880 | 109 335 266 2683 141 . 451 . . . . . . . 120 244 484 616 317 1582 909 3106 . 2008 3645 1009 1321 897 4388 1791 . . . 458 Thermal 11057 | . 60 . 655 188 . 513 . . . . . 292 24 279 220 501 376 499 1507 1563 439 . 83 183 . . . . 332 1219 . 1045 1079 Explosive 10919 | . 745 . . . . 519 . . . . . . . 1817 402 . 272 . 350 . 435 . 812 2324 . . . 705 . . . 2538 . Electromagnetic 5166 | 12 161 . . . . . . . . . . . . . . . . . . . . . . . . . . . 1001 1501 . 927 1564 Impact 2736 | . . . . . . 129 166 951 556 653 281 . . . . . . . . . . . . . . . . . . . . . . Slashing 5034 | . . . . . . 31 35 344 . . 425 . 2674 1525 . . . . . . . . . . . . . . . . . . . Piercing 422 | . . . . . . . . 66 53 211 92 . . . . . . . . . . . . . . . . . . . . . . Highest Corruption 43 | . . . . . . . . 1 1 1 . . 7 7 7 2 2 2 7 4 4 8 20 20 20 20 3 4 6 1 1 14 43 Average Corruption 6 | . . . . . . . . 1 1 1 . . 4 4 4 1 1 2 3 4 2 8 10 20 20 12 1 3 1 1 1 4 27 Corruption Purged 52 | . . . . . . . . . . . . . 5 . 7 2 . . 5 . 4 . . . . 20 . . 9 . . . . Corruption Blocked . | . . . . . . . . . . . . . . . . . . . . . . . . . . . . . . . . . . Effects 329 | . . . . . . . . . 2 3 . . 17 31 10 . 2 14 34 24 4 2 33 37 24 12 . 37 11 1 1 4 26 Message Errors 72 | . . . . . . . . . 1 . . . 3 8 1 . 1 3 8 6 1 . 5 5 5 3 . 10 5 . 1 1 5 Matter Fused 83 | . . . . . . . . . . . . . 3 10 5 . 1 2 8 4 1 1 12 8 4 1 . 10 4 1 . 1 7 Heat Flow Errors 29 | . . . . . . . . . . . . . 3 4 1 . . 3 3 2 . . 5 3 2 1 . 2 . . . . . Energy Discharges 36 | . . . . . . . . . . 1 . . 3 3 1 . . 1 2 7 . 1 5 2 4 1 . 1 1 . . . 3 Parts Rejected 9 | . . . . . . . . . . . . . 2 . . . . . 1 1 . . 1 2 . . . 1 . . . . 1 Parts Fused 3 | . . . . . . . . . . . . . . . . . . . . . . . . 1 . 1 . . . . . 1 . Data Loss (minor) 33 | . . . . . . . . . . . . . 1 4 1 . . . 7 . . . 2 4 2 1 . 8 . . . . 3 Data Loss (major) 22 | . . . . . . . . . . 2 . . 2 1 1 . . 3 2 . 2 . 1 3 1 . . . 1 . . . 3 Misfires 13 | . . . . . . . . . . . . . . 1 . . . 2 2 2 . . 2 1 1 . . 2 . . . . . Alerts 5 | . . . . . . . . . 1 . . . . . . . . . 1 . . . . 1 . 1 . 1 . . . . . Misdirections 5 | . . . . . . . . . . . . . . . . . . . . . . . . 1 . . . . . . . 1 3 Weapon Failures 19 | . . . . . . . . . . . . . . . . . . . . 2 . . . 6 5 3 . 2 . . . . 1 Overload Shots 2 | . . . . . . . . . . . . . . . . . 1 1 . . . . . . . . . . . . . . . Overflow Damage 2161 | . 19 . 18 18 . 92 28 142 124 61 5 . 450 140 20 . . . 34 10 55 . 188 197 . . . 167 92 36 . 58 207 Projectiles 866 | . 12 . 18 18 . 28 . . . . . . . . . . . . 34 10 39 . 142 129 . . . 130 92 36 . 16 162 Explosions 362 | . 7 . . . . 5 . . . . . . . 76 20 . . . . . 16 . 46 68 . . . 37 . . . 42 45 Melee 933 | . . . . . . 59 28 142 124 61 5 . 450 64 . . . . . . . . . . . . . . . . . . . Knockbacks 123 | . 1 7 22 6 . 4 . 4 . 4 3 . . . 3 1 5 . 14 5 6 . 9 4 . . 4 7 8 . . . 6 Impact 11 | . . . . . . 1 . 4 . 4 2 . . . . . . . . . . . . . . . . . . . . . . Kinetic 104 | . 1 7 21 5 . 3 . . . . . . . . 3 1 5 . 13 5 6 . 8 4 . . 3 6 8 . . . 5 Secondary 8 | . . . 1 1 . . . . . . 1 . . . . . . . 1 . . . 1 . . . 1 1 . . . . 1 Self-Inflicted Damage 1210 | . 39 . . . . 40 . . . . . . . 96 23 . . . . . 35 . 137 57 . . . 90 71 42 . 493 87 Shots 43 | . 1 . . . . 1 . . . . . . . 3 1 . . . . . 1 . 3 1 . . . 2 8 4 . 17 1 Rammed 8 | . . . . . . . . . . . . . . . . . . . . . . . . . . . . . . . . 8 . Targets Rammed 12 | . . . . . . . . . . . . . . . . 1 . . . . . . . . . . . . 3 . . 8 . Kicked 4 | . . . . . . . . . . . . . . . . 1 . . . . . . . . . . . . 3 . . . . Crushed . | . . . . . . . . . . . . . . . . . . . . . . . . . . . . . . . . . . Highest Temperature 428 | . 24 7 240 199 . 136 . 17 . 1 2 320 278 265 252 222 10 210 276 218 112 . 237 188 156 428 302 264 261 341 . 385 152 Average Temperature 69 | . 13 4 53 72 . 79 . 7 . 1 2 142 101 93 66 68 5 52 54 57 24 . 48 50 60 86 160 64 71 92 . 156 36 Received Heat Transfer 4244 | . 42 54 408 39 . 450 36 579 54 118 147 . 15 260 18 132 77 75 234 262 105 . 45 126 . 9 87 391 39 37 45 180 180 Effects 12 | . . . . . . . . . . . . . . 2 . . . . . . . . . . . 1 . 4 . 3 . 2 . Shutdowns 3 | . . . . . . . . . . . . . . . . . . . . . . . . . . 1 . . . . . 2 . Energy Bleed 1 | . . . . . . . . . . . . . . . . . . . . . . . . . . . . 1 . . . . . Interference 8 | . . . . . . . . . . . . . . 2 . . . . . . . . . . . . . 3 . 3 . . . Siege Activations . | . . . . . . . . . . . . . . . . . . . . . . . . . . . . . . . . . . Martial Activations . | . . . . . . . . . . . . . . . . . . . . . . . . . . . . . . . . . . Shielding Activations 8 | . . . . . . . . . . . . . . . . . . . . . . . . . . . . 8 . . . . . Total Turns 90 | . . . . . . . . . . . . . . . . . . . . . . . . . . . . 90 . . . . . Longest Duration 25 | . . . . . . . . . . . . . . . . . . . . . . . . . . . . 25 . . . . . Robots Disrupted . | . . . . . . . . . . . . . . . . . . . . . . . . . . . . . . . . . . Combat Hostiles . | . . . . . . . . . . . . . . . . . . . . . . . . . . . . . . . . . . Robots Corrupted 18 | . . . . . . 1 1 1 3 . 1 . . . . . . . . . . . . . . . . . 3 4 . . 4 Combat Hostiles 13 | . . . . . . . 1 1 . . 1 . . . . . . . . . . . . . . . . . 3 4 . . 3 Parts Fried 49 | . . . . . . 1 1 1 3 1 1 . . . . . . . . . . . . . 1 . . . 10 13 . 5 12 Impact Corruptions 19 | . . . . . . 2 1 5 6 3 2 . . . . . . . . . . . . . . . . . . . . . . Robots Melted 15 | . . . 1 . . 1 . . . . . . . . . . . . 3 . . . . . . . . . 2 2 . 5 1 Combat Hostiles 15 | . . . 1 . . 1 . . . . . . . . . . . . 3 . . . . . . . . . 2 2 . 5 1 Parts Melted 75 | . . . 4 . . 1 . . . . . . . 4 . 2 3 3 11 1 . . . . . . . . 8 13 . 20 5 Heat Transferred 23846 | . 50 . 1110 333 . 925 . . . . . 675 50 575 475 1145 663 864 4959 1867 396 . 50 50 . . . . 1380 3480 . 3800 999 Parts Sabotaged . | . . . . . . . . . . . . . . . . . . . . . . . . . . . . . . . . . . Parts Stolen . | . . . . . . . . . . . . . . . . . . . . . . . . . . . . . . . . . . Parts Stripped . | . . . . . . . . . . . . . . . . . . . . . . . . . . . . . . . . . . Power Chain Reactions 5 | . 1 . . . . . . . . . . . . . . . . . . . . . . . . . . . 3 1 . . . Latent Energy Used 873 | . . . . . . . . . . . . . . . . . . . . . . . . . . . . . . . . 131 742 LE Corruption 15 | . . . . . . . . . . . . . . . . . . . . . . . . . . . . . . . . 3 12 Alert | -11 -10 -10 -9 -9 -9 -8 -8 -8 -8 -8 -7 -7 -7 -7 -7 -7 -7 -7 -5 -5 -4 -4 -4 -4 -4 -4 -4 -4 -3 -3 -3 -2 -1 ------- Run | Yrd Mat Min Mat Min Exi Min Mat Gar Mat Gar Fac Was Fac Gar Fac Sto Gar Rec Fac Gar Fac Was Fac Ext Cet Arc Hub Gar Res Gar Tes Res Acc Maximum Alert Level 5 | . 1 . 2 . . 1 . 2 1 . . . . 4 2 1 3 2 2 4 3 1 3 4 3 2 1 4 3 5 5 4 3 Low Security (%) 26 | 100 63 100 69 100 . 42 100 17 48 100 100 100 100 4 11 89 5 . . . . . 4 . . 13 46 . . . . . . Level 1 20 | . 36 . 29 . . 57 . 31 51 . . . . 9 . 10 36 11 46 7 . 100 76 4 . 47 53 20 12 . . . . Level 2 28 | . . . . . . . . 51 . . . . . 11 88 . 20 88 53 19 10 . 17 7 5 39 . 26 66 37 . . 98 Level 3 16 | . . . . . . . . . . . . . . 60 . . 37 . . 22 89 . . 64 94 . . 25 20 15 . 46 1 Level 4 5 | . . . . . . . . . . . . . . 13 . . . . . 50 . . . 23 . . . 27 . 3 1 53 . Level 5 1 | . . . . . . . . . . . . . . . . . . . . . . . . . . . . . . 43 . . . High Security . | . . . . . . . . . . . . . . . . . . . . . . . . . . . . . . . . . . Max Security . | . . . . . . . . . . . . . . . . . . . . . . . . . . . . . . . 98 . . Peak Influence 2124 | 10 287 58 410 132 . 373 123 663 391 178 93 15 196 1139 609 312 822 536 611 1483 1069 355 759 1224 851 551 331 1398 855 2124 1600 1177 732 Initial 1194 | . . 58 . 52 . . 123 61 323 26 93 15 . . 597 42 194 369 506 378 778 355 220 371 653 298 54 217 786 444 1194 1100 670 Average 484 | 2 175 7 128 31 . 207 105 382 191 118 62 1 56 846 497 112 534 457 415 988 922 337 331 873 767 350 205 832 523 1242 1594 1057 598 Influence Increases 21101 | 25 643 1 1002 166 . 700 61 722 268 202 182 18 635 1369 241 531 688 416 1440 1205 1428 . 1063 1555 306 333 437 1351 822 1760 . 831 700 Destroy 0b10 Robot/C 9060 | . 320 . 540 100 . 340 20 320 40 120 80 . 180 760 100 240 420 100 400 620 420 . 240 760 160 80 140 760 440 780 . 320 260 Destroy 0b10 Robot/NC 870 | 25 70 . 135 5 . 15 5 . 35 . 15 . 90 . 25 15 . 10 35 . 60 . 65 60 10 45 15 . 20 . . 70 45 Destroy Leader 1390 | . 68 . 182 30 . 60 12 10 24 . 32 . 64 30 34 74 50 . 104 20 118 . 64 106 . . 20 40 102 30 . 72 44 Allied During Kill 1800 | . . . . . . 14 . 3 2 5 . . 38 96 . 16 48 11 . 122 154 . . 269 101 125 80 58 . 658 . . . Trap Triggered on 0b10 20 | . 10 . . . . . . . . . . . . . . 10 . . . . . . . . . . . . . . . . . Successful Hack 1091 | . 44 . 22 6 . . 24 18 51 27 5 . 81 5 36 56 54 61 114 26 145 . 110 24 . . 3 16 72 28 . 36 27 Select Force Hacks 520 | . 60 . 60 . . . . . 60 . . . 30 . . . . 210 . . . . . . . . 100 . . . . . . Disable Machine 1065 | . 15 . 15 . . 210 . . . 15 15 . 60 15 30 45 15 . 30 15 165 . 180 45 15 45 . 45 30 30 . . 30 Anti-Garrison Action 1100 | . . . . . . . . 200 . . . . . 200 . . 50 . . 200 . . . . . . . 300 . 150 . . . Destroy Structure 2035 | . 56 1 3 10 . 61 . 51 11 5 5 18 17 113 16 15 21 9 122 67 276 . 224 276 20 38 34 102 98 54 . 168 144 Advance Influence 350 | . . . . . . . . . . . . . . . . . . . 350 . . . . . . . . . . . . . . Partial Spotted 405 | . . . 15 . . . . . . 30 30 . 15 30 . 60 15 15 15 . 45 . 60 . . . . . 45 . . 15 15 Lose Combat Pursuer 1395 | . . . 30 15 . . . 120 45 . . . 60 120 . . 15 . 270 135 45 . 120 15 . . 45 30 15 30 . 150 135 Influence Decreases 20981 | 25 492 152 868 300 . 382 285 153 890 65 315 63 635 230 1286 326 165 865 1273 262 1895 701 619 1146 729 921 283 264 1628 228 940 1509 1086 Entered New Map 8246 | . . 93 . 82 . . 195 33 340 15 85 30 . . 542 52 105 453 217 162 705 661 95 388 515 447 103 94 612 148 930 696 448 Time Decay 6934 | 25 342 51 499 138 . 290 90 . 190 . 180 15 391 . 294 254 . 392 626 . 490 30 374 318 214 474 30 . 601 . . 198 428 Search Patrol Dispatched 200 | . . . . . . . . . . . . . . . . . . . 200 . . . . . . . . . . . . . . Lost Part 1057 | . . 8 69 . . 50 . 100 20 10 30 . . 70 . . . . 60 20 20 . . 40 . . 30 50 20 . 10 240 210 Lost Ally 1200 | . . . . 80 . 42 . 20 40 40 20 18 50 160 . 20 60 20 20 80 80 10 . 100 . . 120 120 20 80 . . . Purge Threat 3344 | . 150 . 300 . . . . . 300 . . . 194 . 450 . . . 150 . 600 . 150 300 . . . . 375 . . 375 . Squads Dispatched 94 | . 4 . 3 . . . 1 . 2 . 4 . 10 . 3 4 . . 13 . 11 . 8 5 . . 5 . 10 . . 7 4 Investigation 41 | . 4 . 2 . . . 1 . 2 . . . 5 . 1 1 . . 6 . 3 . 5 . . . 2 . 8 . . . 1 Extermination 16 | . . . . . . . . . . . 1 . 2 . 1 1 . . 4 . 3 . 1 . . . . . . . . 1 2 Reinforcement 23 | . . . 1 . . . . . . . 3 . 2 . 1 . . . 2 . 2 . 1 3 . . . . 2 . . 5 1 Assault 10 | . . . . . . . . . . . . . . . . 2 . . 1 . 2 . . 2 . . 2 . . . . 1 . Garrison 4 | . . . . . . . . . . . . . 1 . . . . . . . 1 . 1 . . . 1 . . . . . . Intercept . | . . . . . . . . . . . . . . . . . . . . . . . . . . . . . . . . . . Searches Triggered 2 | . . . . . . . . . . . . . . . . . . . 2 . . . . . . . . . . . . . . Unchained Authorized 2 | . . . . . . . . . . . . . . . 1 . . . . . . . . . . . . . . . . 1 . Construction Impeded 6 | . . . . . . . . . . . . . . . 1 . . . 1 . . . . 2 . . . . . . . 1 1 Haulers Reinforced 4 | . . . . . . . . . . . . . 1 . . . . . . . 1 . . . . . . . . . . 2 . Active Scanning Responses . | . . . . . . . . . . . . . . . . . . . . . . . . . . . . . . . . . . Cargo Convoy Interrupts 2 | . . . . . . . . . . . . . 1 . . . . . 1 . . . . . . . . . . . . . . Stealth | -11 -10 -10 -9 -9 -9 -8 -8 -8 -8 -8 -7 -7 -7 -7 -7 -7 -7 -7 -5 -5 -4 -4 -4 -4 -4 -4 -4 -4 -3 -3 -3 -2 -1 --------- Run | Yrd Mat Min Mat Min Exi Min Mat Gar Mat Gar Fac Was Fac Gar Fac Sto Gar Rec Fac Gar Fac Was Fac Ext Cet Arc Hub Gar Res Gar Tes Res Acc Distress Signals 27 | . 1 . 1 . . . . . 1 . . . 1 . . 1 . . 3 . 1 . 1 3 2 . . . 6 . . 4 2 Communications Jammed . | . . . . . . . . . . . . . . . . . . . . . . . . . . . . . . . . . . Distress Signals . | . . . . . . . . . . . . . . . . . . . . . . . . . . . . . . . . . . Times Spotted 694 | . 22 3 37 6 . 16 3 21 12 13 8 6 22 35 7 18 16 8 52 40 30 6 28 36 7 15 31 39 28 36 6 52 35 Peak Tracking Total 22 | . 4 2 4 2 . 4 3 5 5 4 2 4 3 8 3 5 3 3 8 6 4 4 7 10 5 2 18 5 5 7 5 22 7 Tactical Retreats 51 | . . . 1 1 . . . 4 2 . . . 2 3 . . 1 1 9 5 2 . 4 1 . . 1 1 1 2 . 6 4 Traps | -11 -10 -10 -9 -9 -9 -8 -8 -8 -8 -8 -7 -7 -7 -7 -7 -7 -7 -7 -5 -5 -4 -4 -4 -4 -4 -4 -4 -4 -3 -3 -3 -2 -1 ------- Run | Yrd Mat Min Mat Min Exi Min Mat Gar Mat Gar Fac Was Fac Gar Fac Sto Gar Rec Fac Gar Fac Was Fac Ext Cet Arc Hub Gar Res Gar Tes Res Acc Traps Triggered 57 | . 1 . . . . . 1 1 . 2 5 . 3 5 1 . . . 5 5 5 . 6 3 . . . 3 5 4 . 1 1 Indirectly . | . . . . . . . . . . . . . . . . . . . . . . . . . . . . . . . . . . Trap Hack Attempts 77 | . 77 . . . . . . . . . . . . . . . . . . . . . . . . . . . . . . . . Triggered . | . . . . . . . . . . . . . . . . . . . . . . . . . . . . . . . . . . Disarmed . | . . . . . . . . . . . . . . . . . . . . . . . . . . . . . . . . . . Reprogrammed 13 | . 12 . . . . . . . . . . . . . . 1 . . . . . . . . . . . . . . . . . Reused 2 | . 1 . . . . . . . . . . . . . . 1 . . . . . . . . . . . . . . . . . Traps Extracted . | . . . . . . . . . . . . . . . . . . . . . . . . . . . . . . . . . . Installed . | . . . . . . . . . . . . . . . . . . . . . . . . . . . . . . . . . . Triggered 2 | . 1 . . . . . . . . . . . . . . 1 . . . . . . . . . . . . . . . . . Machines | -11 -10 -10 -9 -9 -9 -8 -8 -8 -8 -8 -7 -7 -7 -7 -7 -7 -7 -7 -5 -5 -4 -4 -4 -4 -4 -4 -4 -4 -3 -3 -3 -2 -1 ---------- Run | Yrd Mat Min Mat Min Exi Min Mat Gar Mat Gar Fac Was Fac Gar Fac Sto Gar Rec Fac Gar Fac Was Fac Ext Cet Arc Hub Gar Res Gar Tes Res Acc Machines Disabled 91 | . 1 . 1 . . 14 . 2 . 1 1 . 4 5 2 3 2 . 2 6 11 . 12 4 1 3 . 7 2 5 . . 2 Max in Single Turn 11 | . 1 . 1 . . 11 . 1 . 1 1 . . 1 1 1 1 . 1 1 4 . 5 2 1 1 . 1 1 1 . . 1 Garrison Access 14 | . . . . . . . . . . . 1 . 1 . . . . . 3 . 2 . 2 . . . 1 . 1 . . 1 2 Garrison Relay 19 | . . . . . . . . 2 . 1 . . . 4 . . 1 . . 4 . . . . . . . 4 . 3 . . . Network Hub 3 | . . . . . . . . . . . . . . . . . . . . . . . . . . . 3 . . . . . . Energy Cycler 1 | . . . . . . . . . . . . . . . . . . . . . . . . 1 . . . . . . . . . Machines Repaired . | . . . . . . . . . . . . . . . . . . . . . . . . . . . . . . . . . . Machines Dismantled 2 | . . . . . . . . . . . . . . . . . . . . . . . 1 . 1 . . . . . . . . Machines Sabotaged 2 | . . . . . . . . . . . . . . . . . . . . . . . . . . . 2 . . . . . . Overloaded Fab Kills . | . . . . . . . . . . . . . . . . . . . . . . . . . . . . . . . . . . Hacking | -11 -10 -10 -9 -9 -9 -8 -8 -8 -8 -8 -7 -7 -7 -7 -7 -7 -7 -7 -5 -5 -4 -4 -4 -4 -4 -4 -4 -4 -3 -3 -3 -2 -1 --------- Run | Yrd Mat Min Mat Min Exi Min Mat Gar Mat Gar Fac Was Fac Gar Fac Sto Gar Rec Fac Gar Fac Was Fac Ext Cet Arc Hub Gar Res Gar Tes Res Acc Machines Accessed 229 | . 11 . 14 2 2 . 3 3 12 4 3 . 20 2 6 16 2 13 29 4 28 . 12 7 1 . 3 3 15 3 . 5 6 Terminals 132 | . 8 . 10 1 . . 2 3 7 4 1 . 11 2 3 13 2 6 11 4 13 . 3 7 1 . 2 3 6 3 . 3 3 Fabricators 13 | . . . . . . . . . . . . . 3 . 1 . . . 3 . 2 . 1 . . . . . 3 . . . . Repair Stations 15 | . 1 . 1 . . . . . 1 . . . 1 . . 1 . . 4 . 3 . 3 . . . . . . . . . . Recycling Units 27 | . 2 . 1 . . . . . 1 . . . 1 . 1 1 . 7 5 . 5 . 1 . . . . . 2 . . . . Scanalyzers 19 | . . . 2 . . . . . 2 . 1 . 2 . 1 . . . 2 . 3 . 2 . . . . . 2 . . 1 1 Garrison Access 20 | . . . . . . . 1 . 1 . 1 . 2 . . 1 . . 4 . 2 . 2 . . . 1 . 2 . . 1 2 Total Hacks 702 | . 47 . 53 3 2 . 8 8 40 8 25 . 67 9 42 41 5 35 75 10 69 . 29 17 3 . 7 13 52 4 . 15 15 Successful 400 | . 28 . 39 3 2 . 5 4 30 3 24 . 37 2 26 27 4 22 53 3 39 . 15 8 . . 4 1 11 2 . 5 3 Failed 296 | . 18 . 13 . . . 3 4 9 5 1 . 30 7 15 13 1 13 22 7 30 . 14 9 3 . 3 12 40 2 . 10 12 Catastrophic 59 | . 4 . . . . . . . 3 1 . . 3 1 3 2 . 2 . 2 7 . 2 1 2 . . 6 14 . . 2 4 Database Lockouts 6 | . 1 . 1 . . . . . 1 . . . . . 1 1 . . . . . . . . . . . . 1 . . . . Manual 272 | . 26 . 31 . 1 . 4 3 13 1 2 . 20 2 25 19 3 20 30 1 16 . 12 7 1 . 3 4 18 1 . 4 5 Terminals 440 | . 39 . 39 2 . . 7 8 26 8 3 . 40 9 28 36 5 14 31 10 34 . 10 17 3 . 6 13 28 4 . 10 10 Fabricators 53 | . . . . . . . . . . . . . 11 . 6 . . . 11 . 6 . 4 . . . . . 15 . . . . Repair Stations 27 | . 3 . 2 . . . . . 2 . . . 1 . . 1 . . 8 . 6 . 4 . . . . . . . . . . Recycling Units 60 | . 5 . 3 . . . . . 1 . . . 2 . 2 2 . 21 12 . 9 . 1 . . . . . 2 . . . . Scanalyzers 95 | . . . 9 . . . . . 10 . 20 . 11 . 6 . . . 9 . 11 . 7 . . . . . 5 . . 4 3 Garrison Access 24 | . . . . . . . 1 . 1 . 2 . 2 . . 2 . . 4 . 3 . 3 . . . 1 . 2 . . 1 2 Terminal Hacks 139 | . 13 . 14 3 2 . 2 3 11 3 1 . 11 2 11 14 4 2 8 3 14 . 3 7 . . 1 1 2 2 . 1 1 Record 1 | . . . . . 1 . . . . . . . . . . . . . . . . . . . . . . . . . . . . Part Schematic 6 | . . . . . . . . . . . . . 2 . . . . 2 1 . 1 . . . . . . . . . . . . Robot Schematic 1 | . . . . . . . . . . . . . 1 . . . . . . . . . . . . . . . . . . . . Robot Analysis 12 | . 3 . 3 . . . 1 . 1 . . . . . . 3 . . . . . . . 1 . . . . . . . . . Prototype ID Bank 4 | . . . 1 . . . . . 1 . . . 1 . . 1 . . . . . . . . . . . . . . . . . Open Door 13 | . . . . 1 . . . 1 . 1 . . . 1 . 6 . . . 1 . . . 2 . . . . . . . . . Level Access Points 2 | . . . . . . . . . . . . . . . 1 . . . . . . . . . . . . . . . . . 1 Branch Access Points 7 | . 1 . 1 . . . . . 1 . . . 1 . 1 . . . 1 . 1 . . . . . . . . . . . . Emergency Access Points 4 | . . . . . . . . 1 . 1 . . . 1 . . 1 . . . . . . . . . . . . . . . . Machine Index 3 | . . . . . . . . . 1 . . . 1 . . . . . 1 . . . . . . . . . . . . . . Terminal Index 5 | . 1 . 1 . . . . . . . . . . . 1 . . . . . 1 . . . . . . . 1 . . . . Fabricator Index 2 | . . . . . . . . . . . . . . . 1 . . . . . 1 . . . . . . . . . . . . Repair Station Index 1 | . 1 . . . . . . . . . . . . . . . . . . . . . . . . . . . . . . . . Recycling Unit Index 1 | . . . . . . . . . . . . . . . . . . . 1 . . . . . . . . . . . . . . Scanalyzer Index 1 | . . . 1 . . . . . . . . . . . . . . . . . . . . . . . . . . . . . . Alert Level 2 | . . . 1 . . . . . . . . . . . . 1 . . . . . . . . . . . . . . . . . Unreport Threat 18 | . 1 . 2 . . . . . 2 . . . 2 . 3 . . . 1 . 4 . 1 2 . . . . . . . . . Locate Traps 17 | . 2 . 4 . . . . . 3 . . . 2 . 2 . . . . . 1 . 1 2 . . . . . . . . . Reprogram Traps 2 | . 1 . . . . . . . . . . . . . . 1 . . . . . . . . . . . . . . . . . Dispatch Records 1 | . . . . . . . . . 1 . . . . . . . . . . . . . . . . . . . . . . . . Patrol Status 1 | . . . . 1 . . . . . . . . . . . . . . . . . . . . . . . . . . . . . Recall Investigation 2 | . 1 . . . . . . . 1 . . . . . . . . . . . . . . . . . . . . . . . . Recall Extermination 4 | . . . . . . . . . . . . . 1 . . 1 . . . . 2 . . . . . . . . . . . . Hauler Manifests 3 | . . . . . . . . . . . . . . . 1 1 . . . . . . 1 . . . . . . . . . . Registered Components 5 | . 1 . . . . . 1 . . . . . . . . . . . 1 . 1 . . . . . . . 1 . . . . Registered Prototypes 3 | . . . . . . . . . . . 1 . . . . . . . 1 . 1 . . . . . . . . . . . . Zone Layout 7 | . 1 . . 1 . . . . . . . . . . 1 . . . 1 . 1 . . . . . 1 . . . . 1 . Garrison Registry 4 | . . . . . . . . 1 . . . . . . . . 1 . . 1 . . . . . . . . . 1 . . . Patrol Navigation 2 | . . . . . . . . . . . . . . . . . 1 . . . . . . . . . . . . 1 . . . Security Stations 4 | . . . . . . . . . . 1 . . . . . . 1 . . 1 . . . . . . . 1 . . . . . Proto ID Catalog 1 | . . . . . 1 . . . . . . . . . . . . . . . . . . . . . . . . . . . . Fabricator Hacks 19 | . . . . . . . . . . . . . 4 . 4 . . . 6 . 2 . 1 . . . . . 2 . . . . Network Status 5 | . . . . . . . . . . . . . 1 . 1 . . . 2 . 1 . . . . . . . . . . . . Load Schematic 9 | . . . . . . . . . . . . . 2 . 2 . . . 2 . . . 1 . . . . . 2 . . . . Build 5 | . . . . . . . . . . . . . 1 . 1 . . . 2 . 1 . . . . . . . . . . . . Repair Station Hacks 15 | . 2 . 1 . . . . . 2 . . . 1 . . . . . 5 . 3 . 1 . . . . . . . . . . Scan Component 8 | . 1 . 1 . . . . . 1 . . . 1 . . . . . 2 . 2 . . . . . . . . . . . . Repair 5 | . 1 . . . . . . . 1 . . . . . . . . . 2 . 1 . . . . . . . . . . . . Refit 2 | . . . . . . . . . . . . . . . . . . . 1 . . . 1 . . . . . . . . . . Recycling Unit Hacks 18 | . 1 . 1 . . . . . 1 . . . . . 1 1 . 6 3 . 3 . . . . . . . 1 . . . . Retrieve Components 18 | . 1 . 1 . . . . . 1 . . . . . 1 1 . 6 3 . 3 . . . . . . . 1 . . . . Scanalyzer 68 | . . . 8 . . . . . 8 . 20 . 9 . 3 . . . 8 . 6 . 4 . . . . . 2 . . . . Insert Component 22 | . . . 4 . . . . . 3 . 5 . 4 . . . . . 1 . 2 . 3 . . . . . . . . . . Analyze 26 | . . . 3 . . . . . 2 . 10 . 5 . . . . . 2 . 3 . 1 . . . . . . . . . . Retrieve Study 20 | . . . 1 . . . . . 3 . 5 . . . 3 . . . 5 . 1 . . . . . . . 2 . . . . Garrison Access Hacks 24 | . . . . . . . 1 . 1 . 2 . 2 . . 2 . . 4 . 3 . 3 . . . 1 . 2 . . 1 2 Unlock Access 7 | . . . . . . . 1 . 1 . . . 1 . . 1 . . 1 . . . . . . . 1 . 1 . . . . Seal Access 13 | . . . . . . . . . . . 1 . 1 . . . . . 3 . 2 . 2 . . . . . 1 . . 1 2 Coupler Status 4 | . . . . . . . . . . . 1 . . . . 1 . . . . 1 . 1 . . . . . . . . . . Unauthorized Hacks 117 | . 12 . 15 . . . 2 1 7 . 1 . 10 . 7 10 . 14 19 . 8 . 3 1 . . 2 . 2 . . 3 . Terminals 84 | . 10 . 13 . . . 2 1 5 . 1 . 6 . 6 9 . 7 9 . 6 . 1 1 . . 2 . 2 . . 3 . Track 8 | . . . 2 . . . . . . . . . . . 1 1 . . 3 . . . . . . . . . . . . 1 . Assimilate 3 | . . . . . . . . . . . . . . . . . . . . . 3 . . . . . . . . . . . . Botnet 38 | . 5 . 5 . . . 1 . 2 . . . 5 . 2 3 . 2 5 . 3 . 1 1 . . . . 2 . . 1 . Disrupt 2 | . . . . . . . . . . . . . . . . 1 . . . . . . . . . . . . . . . 1 . Operators 6 | . . . 1 . . . . . 1 . . . . . 2 1 . . 1 . . . . . . . . . . . . . . Skim 24 | . 5 . 5 . . . 1 . 2 . 1 . 1 . 1 3 . 5 . . . . . . . . . . . . . . . Sabotage 2 | . . . . . . . . . . . . . . . . . . . . . . . . . . . 2 . . . . . . Override 1 | . . . . . . . . 1 . . . . . . . . . . . . . . . . . . . . . . . . . Fabricators 7 | . . . . . . . . . . . . . 3 . . . . . 3 . 1 . . . . . . . . . . . . Prioritize 4 | . . . . . . . . . . . . . 1 . . . . . 2 . 1 . . . . . . . . . . . . Liberate 1 | . . . . . . . . . . . . . 1 . . . . . . . . . . . . . . . . . . . . Haulers 2 | . . . . . . . . . . . . . 1 . . . . . 1 . . . . . . . . . . . . . . Repair Stations 5 | . . . . . . . . . . . . . . . . 1 . . 2 . . . 2 . . . . . . . . . . Mechanics 1 | . . . . . . . . . . . . . . . . . . . . . . . 1 . . . . . . . . . . Patch 4 | . . . . . . . . . . . . . . . . 1 . . 2 . . . 1 . . . . . . . . . . Recycling Units 17 | . 2 . 1 . . . . . . . . . . . 1 . . 7 5 . 1 . . . . . . . . . . . . Reject 3 | . . . . . . . . . . . . . . . 1 . . . 2 . . . . . . . . . . . . . . Recyclers 2 | . . . . . . . . . . . . . . . . . . . 1 . 1 . . . . . . . . . . . . Mask 2 | . . . . . . . . . . . . . . . . . . . 2 . . . . . . . . . . . . . . Tunnel 10 | . 2 . 1 . . . . . . . . . . . . . . 7 . . . . . . . . . . . . . . . Scanalyzers 4 | . . . 1 . . . . . 2 . . . 1 . . . . . . . . . . . . . . . . . . . . Extract 4 | . . . 1 . . . . . 2 . . . 1 . . . . . . . . . . . . . . . . . . . . Garrison Access . | . . . . . . . . . . . . . . . . . . . . . . . . . . . . . . . . . . Data Cores Recovered 8 | . 1 . 1 . . . . . . . . . 4 . . . . . . . 1 . . . . . 1 . . . . . . Used 6 | . . . 1 . . . . . . . . . 4 . . . . . . . . . . . . . 1 . . . . . . Hacking Detections 176 | . 9 . 13 1 . . 2 3 7 4 1 . 16 1 6 8 1 9 23 3 25 . 10 5 1 . 2 3 13 2 . 4 4 Full Trace Events 22 | . . . . . . . . 1 1 . . . 3 . 1 . . . 4 . 3 . 3 . . . . . 6 . . . . Feedback Events 2 | . . . . . . . . . . . . . . . . . . . . . . . . . . . . . 2 . . . . Corruption 2 | . . . . . . . . . . . . . . . . . . . . . . . . . . . . . 2 . . . . Feedback Blocked . | . . . . . . . . . . . . . . . . . . . . . . . . . . . . . . . . . . Robot Schematics Acquired 1 | . . . . . . . . . . . . . 1 . . . . . . . . . . . . . . . . . . . . Robots Built . | . . . . . . . . . . . . . . . . . . . . . . . . . . . . . . . . . . Authchips . | . . . . . . . . . . . . . . . . . . . . . . . . . . . . . . . . . . Time . | . . . . . . . . . . . . . . . . . . . . . . . . . . . . . . . . . . Total Robot Build Rating . | . . . . . . . . . . . . . . . . . . . . . . . . . . . . . . . . . . Part Schematics Acquired 51 | . . . 4 . . . . . 26 . 5 . 10 . . . . 2 2 . 1 . 1 . . . . . . . . . . Parts Built 8 | . . . . . . . . . . . . . 2 . 2 . . . 4 . . . . . . . . . . . . . . Authchips 1 | . . . . . . . . . . . . . . . . . . . 1 . . . . . . . . . . . . . . Time 281 | . . . . . . . . . . . . . 29 . 42 . . . 71 . 139 . . . . . . . . . . . . Total Part Build Rating 44 | . . . . . . . . . . . . . 14 . 8 . . . 22 . . . . . . . . . . . . . . Part Studies Acquired 20 | . . . 1 . . . . . 3 . 5 . . . 3 . . . 5 . 1 . . . . . . . 2 . . . . Parts Repaired 5 | . 1 . . . . . . . 1 . . . . . . . . . 2 . 1 . . . . . . . . . . . . Time 243 | . 26 . . . . . . . 26 . . . . . . . . . 92 . 99 . . . . . . . . . . . . Parts Recycled . | . . . . . . . . . . . . . . . . . . . . . . . . . . . . . . . . . . Recycled Matter . | . . . . . . . . . . . . . . . . . . . . . . . . . . . . . . . . . . Retrieved Matter . | . . . . . . . . . . . . . . . . . . . . . . . . . . . . . . . . . . Retrieved Components 74 | . 9 . 9 . . . . . 3 . . . . . 1 4 . 14 10 . 14 . . . . . . . 10 . . . . Parts Scanalyzed 17 | . . . 3 . . . . . 2 . 5 . 4 . . . . . 1 . 1 . 1 . . . . . . . . . . Part Schematics Acquired 16 | . . . 3 . . . . . 2 . 5 . 4 . . . . . 1 . . . 1 . . . . . . . . . . Parts Damaged 3 | . . . . . . . . . . . 1 . 1 . . . . . . . . . 1 . . . . . . . . . . Bothacking | -11 -10 -10 -9 -9 -9 -8 -8 -8 -8 -8 -7 -7 -7 -7 -7 -7 -7 -7 -5 -5 -4 -4 -4 -4 -4 -4 -4 -4 -3 -3 -3 -2 -1 ------------ Run | Yrd Mat Min Mat Min Exi Min Mat Gar Mat Gar Fac Was Fac Gar Fac Sto Gar Rec Fac Gar Fac Was Fac Ext Cet Arc Hub Gar Res Gar Tes Res Acc Used RIF Installer 7 | . . . . . . . . 2 . . . . . 1 . . 1 . . 1 . . . . . . . 1 . 1 . . . Command Fork 1 | . . . . . . . . . . . . . . . . . . . . . . . . . . . . . . 1 . . . Zone Cloak 1 | . . . . . . . . . . . . . . 1 . . . . . . . . . . . . . . . . . . . Watcher Feeds 1 | . . . . . . . . . . . . . . . . . 1 . . . . . . . . . . . . . . . . Structural Interface 1 | . . . . . . . . 1 . . . . . . . . . . . . . . . . . . . . . . . . . Autoassimilate 2 | . . . . . . . . . . . . . . . . . . . . 1 . . . . . . . 1 . . . . . Robots Hacked 46 | . . . . . . . . . 2 2 . . 10 4 . . . . 4 5 2 2 1 1 . . . 3 8 1 . 1 . Non-combat 27 | . . . . . . . . . . . . . 10 . . . . . 4 . 2 . 1 1 . . . . 8 . . 1 . Combat 19 | . . . . . . . . . 2 2 . . . 4 . . . . . 5 . 2 . . . . . 3 . 1 . . . Autoassimilated 1 | . . . . . . . . . . . . . . . . . . . . . . . . . . . . 1 . . . . . Robot Hacks Applied 58 | . . . . . . . . . 3 2 . . 13 5 . . . . 4 5 2 2 1 1 . . . 2 13 1 . 4 . parse_system 3 | . . . . . . . . . 1 . . . . . . . . . 1 . . . . . . . . . 1 . . . . no_distress 1 | . . . . . . . . . . . . . 1 . . . . . . . . . . . . . . . . . . . . map_walls 1 | . . . . . . . . . . . . . . . . . . . . . . . . . . . . . 1 . . . . drop_inventory 8 | . . . . . . . . . . . . . 2 . . . . . 1 . 1 . . . . . . . 4 . . . . ignore_parts 6 | . . . . . . . . . . . . . 6 . . . . . . . . . . . . . . . . . . . . purge_threat 6 | . . . . . . . . . . . . . . . . . . . . . . . . . . . . . 3 . . 3 . locate_traps 1 | . . . . . . . . . . . . . . . . . . . . . . . . . . . . . 1 . . . . disarm_traps 1 | . . . . . . . . . . . . . . . . . . . . . . . . 1 . . . . . . . . . block_reporting 5 | . . . . . . . . . . . . . 3 . . . . . 1 . . . . . . . . . . . . 1 . recall_investigation 1 | . . . . . . . . . . . . . . . . . . . . . . . 1 . . . . . . . . . . map_route 5 | . . . . . . . . . . . . . 1 . . . . . 1 . 1 . . . . . . . 2 . . . . mark_security 1 | . . . . . . . . . . . . . . . . . . . . . . . . . . . . . 1 . . . . ignore_targets 2 | . . . . . . . . . . . . . . . . . . . . . . 2 . . . . . . . . . . . disrupt_area 1 | . . . . . . . . . . . . . . 1 . . . . . . . . . . . . . . . . . . . disable_weapons 1 | . . . . . . . . . . . . . . . . . . . . 1 . . . . . . . . . . . . . overwrite_iff 6 | . . . . . . . . . 1 . . . . 1 . . . . . 1 . . . . . . . 2 . 1 . . . formatsys_high 9 | . . . . . . . . . 1 2 . . . 3 . . . . . 3 . . . . . . . . . . . . . Relay Couplers Released 80 | . . . . . . . . 9 . 3 . . . 17 . . 5 . . 19 . . . . . . 2 14 . 11 . . . Machine Destruction 80 | . . . . . . . . 9 . 3 . . . 17 . . 5 . . 19 . . . . . . 2 14 . 11 . . . Attached 23 | . . . . . . . . . 1 1 . . 1 4 1 . 1 . 1 6 . . . . . . . 2 2 1 . 2 . Fabnet Peak Effective % . | . . . . . . . . . . . . . . . . . . . . . . . . . . . . . . . . . . Robots Rewired 33 | . . . . . . . . . . . 1 . . 3 . . . 5 . 5 . . . 3 . . . 4 . 12 . . . Allies Hacked 2 | . . . . . . . . . . . . . . 1 . . . . . . . . . 1 . . . . . . . . . Hacks Repelled . | . . . . . . . . . . . . . . . . . . . . . . . . . . . . . . . . . . Allies | -11 -10 -10 -9 -9 -9 -8 -8 -8 -8 -8 -7 -7 -7 -7 -7 -7 -7 -7 -5 -5 -4 -4 -4 -4 -4 -4 -4 -4 -3 -3 -3 -2 -1 -------- Run | Yrd Mat Min Mat Min Exi Min Mat Gar Mat Gar Fac Was Fac Gar Fac Sto Gar Rec Fac Gar Fac Was Fac Ext Cet Arc Hub Gar Res Gar Tes Res Acc Total Allies 99 | . . . . 5 . 1 . 1 2 3 1 19 3 10 . 2 2 5 . 9 2 . . 9 5 . . 7 . 13 . . . Largest Group 19 | . . . . 3 3 3 . 1 1 2 1 19 7 6 . 2 3 5 2 6 5 1 . 9 7 6 6 4 . 12 . . . Highest-Rated Group 637 | . . . . 40 40 40 . 31 15 32 30 475 213 237 . 62 188 153 80 425 286 10 . 487 637 507 507 160 . 568 . . . Highest-Rated Ally 159 | . . . . 34 16 16 . 31 15 31 30 35 31 80 . 31 95 40 40 119 119 10 . 159 153 96 96 47 . 116 . . . Total Orders 17 | . . . . 3 . . . . . . . . . . . . . . 2 4 . . . . 5 2 . . 1 . . . . STAY 7 | . . . . . . . . . . . . . . . . . . . 1 2 . . . . 3 1 . . . . . . . ROAM 1 | . . . . . . . . . . . . . . . . . . . 1 . . . . . . . . . . . . . . FOLLOW 5 | . . . . . . . . . . . . . . . . . . . . 2 . . . . 2 1 . . . . . . . EXPLORE 2 | . . . . 1 . . . . . . . . . . . . . . . . . . . . . . . . 1 . . . . RETURN 2 | . . . . 2 . . . . . . . . . . . . . . . . . . . . . . . . . . . . . Ally Attacks 660 | . . . . 10 . 20 . 5 3 30 2 128 56 70 . 32 25 8 . 39 35 . . 64 17 9 27 11 . 69 . . . Total Damage 17160 | . . . . 116 . 225 . 109 75 451 . 3389 776 1704 . 462 984 187 . 1666 1008 . . 1421 547 278 808 354 . 2600 . . . Kills 104 | . . . . 2 . 2 . . 2 1 . 9 7 14 . 4 11 . . 9 8 . . 12 3 3 1 . . 16 . . . Allies Corrupted 4 | . . . . . . . . . . . . . . . . . 1 . . . . . . . . . 2 . . 1 . . . Allies Melted 2 | . . . . . . . . . . 1 . . . . . . . . . 1 . . . . . . . . . . . . . Intel | -11 -10 -10 -9 -9 -9 -8 -8 -8 -8 -8 -7 -7 -7 -7 -7 -7 -7 -7 -5 -5 -4 -4 -4 -4 -4 -4 -4 -4 -3 -3 -3 -2 -1 ------- Run | Yrd Mat Min Mat Min Exi Min Mat Gar Mat Gar Fac Was Fac Gar Fac Sto Gar Rec Fac Gar Fac Was Fac Ext Cet Arc Hub Gar Res Gar Tes Res Acc Active Infowar (turns) 2615 | 22 822 355 470 . . . . . . . . . . . . . . 548 116 . 2 . . . . . . . . . . . 280 Sensors 732 | . . 262 470 . . . . . . . . . . . . . . . . . . . . . . . . . . . . . . Terrain 2 | . . . . . . . . . . . . . . . . . . . . . 2 . . . . . . . . . . . . Seismic 1217 | 22 822 93 . . . . . . . . . . . . . . . . . . . . . . . . . . . . . . 280 Machine Analysis 664 | . . . . . . . . . . . . . . . . . . 548 116 . . . . . . . . . . . . . . Robot Analysis Total 12 | . 3 . 3 . . . 1 . 1 . . . . . . 3 . . . . . . . 1 . . . . . . . . . Derelict Logs Recovered 3 | . . 1 . 2 . . . . . . . . . . . . . . . . . . . . . . . . . . . . . Drone Launches 15 | . . . . 10 . 3 . . . . . . . . . . . . . . . . . . . . . . 2 . . . . Drone Recoveries 10 | . . . . 7 . 3 . . . . . . . . . . . . . . . . . . . . . . . . . . . Exploration | -11 -10 -10 -9 -9 -9 -8 -8 -8 -8 -8 -7 -7 -7 -7 -7 -7 -7 -7 -5 -5 -4 -4 -4 -4 -4 -4 -4 -4 -3 -3 -3 -2 -1 ------------- Run | Yrd Mat Min Mat Min Exi Min Mat Gar Mat Gar Fac Was Fac Gar Fac Sto Gar Rec Fac Gar Fac Was Fac Ext Cet Arc Hub Gar Res Gar Tes Res Acc Turns Passed 25508 | 115 830 489 1628 623 240 893 181 927 387 325 378 320 1040 990 651 552 358 924 2159 1034 1280 79 877 709 440 1219 64 1570 1923 758 75 419 1051 Spaces Moved 29070 | 69 570 434 1081 474 211 576 149 683 548 470 638 343 1465 1130 534 580 494 1180 2986 1494 2942 260 2104 825 562 323 38 1170 2398 893 127 404 915 Core 399 | 3 . . . . . . . . . . . . . 3 . . . . . . . . . . . . . . . . . . 393 Treads 7 | . . . . . . . . . . . . . . . . . . . . . . . . . . . . . . . . . 7 Legs 2401 | . . . . . . . . 205 . . . . . 197 534 81 . . . . . . . . . . . 895 489 . . . . Wheels 3828 | 66 570 434 1081 474 211 576 149 267 . . . . . . . . . . . . . . . . . . . . . . . . . Hover 20714 | . . . . . . . . . . . 146 343 1465 930 . 499 494 1180 2986 1494 2942 260 2104 825 562 323 38 275 1909 893 127 404 515 Flight 1721 | . . . . . . . . 211 548 470 492 . . . . . . . . . . . . . . . . . . . . . . Fastest Speed 21 | 50 100 100 70 85 100 85 95 26 26 26 26 35 35 33 97 38 38 38 24 24 21 21 21 21 28 28 28 40 48 53 53 49 50 Average Speed 49 | 97 100 100 94 99 100 90 95 89 26 26 28 37 35 50 100 47 38 38 40 24 22 21 22 26 34 28 31 100 63 53 53 50 59 Slowest Speed 300 | 100 100 115 115 100 100 100 95 260 99 26 99 38 38 300 105 102 38 40 115 24 94 21 94 103 96 93 43 236 111 54 53 66 150 Overloaded Moves . | . . . . . . . . . . . . . . . . . . . . . . . . . . . . . . . . . . Propulsion Burnouts . | . . . . . . . . . . . . . . . . . . . . . . . . . . . . . . . . . . Robots Hopped 3 | . . . . . . . . . 1 1 1 . . . . . . . . . . . . . . . . . . . . . . Potential Cave-ins 3 | . . . . . . . . . . . . . . . . . . . . . . . . . . . . . 2 . . 1 . Cave-ins Triggered 1 | . . . . . . . . . . . . . . . . . . . . . . . . . . . . . . . . 1 . Exploration Rate (%) 62 | 3 95 82 87 99 61 92 16 77 52 66 19 96 34 90 21 78 39 97 69 92 69 87 44 83 67 96 5 98 62 72 25 22 25 Regions Visited 33 Branch Regions 11 Pre-discovered Areas 17 | . 2 . 3 1 1 . . . . . . . . . . . . 10 . . . . . . . . . . . . . . . Known Exits Taken 17 | . 1 1 1 . . 1 1 . 1 . . . 1 . 1 1 . 1 1 . . . 1 . . 1 1 . 1 . 1 1 . Unknown Exits Taken 5 | 1 . . . 1 1 . . . . . . . . . . . . . . . . . . 1 1 . . . . . . . . Scrap Searched 5 | . . 1 . 3 . 1 . . . . . . . . . . . . . . . . . . . . . . . . . . . Spaces Dug 250 | . . 1 1 . . . . 1 11 . 5 . 17 17 2 9 10 1 41 . 28 . 27 . . . . 38 17 . . 14 10 Terrain Destroyed 1215 | . 64 1 1 1 . 79 . 1 11 . 5 . 17 122 15 13 10 8 56 21 147 . 154 161 21 22 16 50 57 11 . 96 55 Melee 45 | . . 1 1 . . . . 1 11 . 5 . 17 . . . . . . . . . . . . . . . 9 . . . . Projectile 387 | . . . . 1 . . . . . . . . . . 2 13 . 8 43 21 73 . 52 47 21 22 16 12 20 2 . 21 13 AOE 783 | . 64 . . . . 79 . . . . . . . 122 13 . 10 . 13 . 74 . 102 114 . . . 38 28 9 . 75 42 Terrain Rammed . | . . . . . . . . . . . . . . . . . . . . . . . . . . . . . . . . . . Walls Destroyed . | . . . . . . . . . . . . . . . . . . . . . . . . . . . . . . . . . . Machines Disabled . | . . . . . . . . . . . . . . . . . . . . . . . . . . . . . . . . . . Actions | -11 -10 -10 -9 -9 -9 -8 -8 -8 -8 -8 -7 -7 -7 -7 -7 -7 -7 -7 -5 -5 -4 -4 -4 -4 -4 -4 -4 -4 -3 -3 -3 -2 -1 --------- Run | Yrd Mat Min Mat Min Exi Min Mat Gar Mat Gar Fac Was Fac Gar Fac Sto Gar Rec Fac Gar Fac Was Fac Ext Cet Arc Hub Gar Res Gar Tes Res Acc Total 37893 | 101 753 467 1429 602 240 852 182 893 738 616 776 522 1873 1439 622 796 604 1611 3665 2034 3441 282 2416 1228 771 1407 64 1476 2754 1163 134 603 1339 Wait 5202 | 14 34 17 141 103 26 195 14 99 128 80 13 151 271 166 24 129 64 369 404 290 314 12 154 269 101 1031 . 98 94 42 6 66 283 Move 29035 | 68 569 433 1080 473 210 575 148 682 546 467 636 342 1464 1129 533 579 493 1179 2985 1493 2942 259 2103 824 561 322 38 1169 2398 892 126 402 915 Hop 3 | . . . . . . . . . 1 1 1 . . . . . . . . . . . . . . . . . . . . . . Pick Up 219 | 2 9 2 23 3 1 4 5 10 3 1 12 2 6 3 15 5 3 3 17 12 11 1 7 2 7 1 . 4 20 12 . 8 5 Fast Attach 361 | 7 4 1 11 2 . 3 1 9 11 . 16 7 12 13 7 14 2 5 23 17 33 2 17 10 19 10 2 23 45 4 . 6 25 Attach 115 | . . 1 10 . 1 4 2 9 1 1 9 . 1 2 1 3 . 1 9 2 4 . 2 1 . . 1 4 13 1 . 13 19 Detach 44 | . . . 4 1 . 1 . . . . 2 . . . 1 . . . 3 . 3 . 2 1 . . 1 5 6 . . 2 12 Swap 221 | . 13 4 15 2 . 6 . 2 4 3 . 2 8 8 8 3 5 2 25 18 14 3 9 6 7 1 2 7 18 12 1 7 6 Drop 450 | . 6 . 15 6 2 2 7 19 9 1 17 9 19 8 17 22 6 8 29 26 45 3 21 7 25 9 2 21 58 16 1 10 4 Fire 1429 | 10 41 8 129 12 . 59 . . 4 3 . 9 20 32 16 40 31 24 170 83 75 2 74 73 43 33 18 112 90 78 . 70 70 Melee 298 | . . 1 1 . . 3 5 63 31 32 34 . 72 46 . . . . . . . . . . . . . . 9 1 . . . Ram 8 | . . . . . . . . . . . . . . . . . . . . . . . . . . . . . . . . 8 . Kick 4 | . . . . . . . . . . . . . . . . 1 . . . . . . . . . . . . 3 . . . . Crush . | . . . . . . . . . . . . . . . . . . . . . . . . . . . . . . . . . . Escape Stasis 165 | . . . . . . . . . . 26 30 . . 25 . . . . . 35 . . . 27 . . . 2 . 9 . 11 . Rewire 227 | . . . . . . . . . . 1 6 . . 7 . . . 20 . 58 . . . 8 . . . 31 . 96 . . . Trap 77 | . 77 . . . . . . . . . . . . . . . . . . . . . . . . . . . . . . . . Miscellaneous 35 | . . . . . . . . . . . . . . . . . . . . . . . 27 . 8 . . . . . . . . Route ------- -11/Scrapyard -10/Materials (discovered 5 exits: *Mat x3 / *Min / Sub) -10/Mines (discovered 2 exits: *Mat / *Sub) -9/Materials (discovered 5 exits: *Mat x3 / *Min x2) -9/Mines (discovered 3 exits: *Mat x2 / *Exi) -9/Exiles -8/Mines -8/Materials -8/Garrison (discovered 3 exits: *Mat x3) -8/Materials (discovered 2 exits: *Fac / Gar) -8/Garrison (discovered 2 exits: *Fac x2) -7/Factory -7/Waste -7/Factory (discovered 4 exits: Sto / Low x2 / Gar) -7/Garrison (discovered 4 exits: *Fac x4) -7/Factory (discovered 8 exits: Fac x4 / *Sto x2 / Low x2) -7/Storage (discovered 2 exits: Rec / Gar) -7/Garrison (discovered 3 exits: *Rec x3) -7/Recycling -5/Factory (discovered 6 exits: *Fac x3 / *Upp x2 / Gar) -5/Garrison (discovered 3 exits: *Fac x3) -4/Factory (discovered 7 exits: *Res x2 / *Upp x2 / *Ext x2 / *Arm) -4/Waste -4/Factory (discovered 6 exits: *Res x3 / *Upp / *Ext x2) -4/Extension (discovered 3 exits: *Res x2 / *Cet) -4/Cetus (discovered 2 exits: *Res / [*Arc]) -4/Archives (discovered 3 exits: *Res / *Hub x2) -4/Hub_04(d) (discovered 2 exits: *Res / Gar) -4/Garrison (discovered 3 exits: *Res x3) -3/Research (discovered 3 exits: *Res / [*Tes] / Gar) -3/Garrison (discovered 3 exits: [*Tes x3]) -3/Testing -2/Research -1/Access (discovered 1 exit: Sur) History --------- Turn | Location | Event 19 | -11/Scrapyard | Discovered new exit (range 16) 116 | -11/Scrapyard | Entered Materials 228 | -10/Materials | Discovered new exit (range 15) 304 | -10/Materials | Build established: Mutant 364 | -10/Materials | Discovered new exit (range 8) 387 | -10/Materials | Central database locked down 544 | -10/Materials | Identified exit to Mines 571 | -10/Materials | Learned location of 1 exit from Storage 628 | -10/Materials | Identified exit to Subcaves 665 | -10/Materials | Discovered new exit (range 15) 714 | -10/Materials | Learned location of 1 exit from Recycling 741 | -10/Materials | Learned Storage emergency access door positions 777 | -10/Materials | Identified exit to Materials 777 | -10/Materials | Learned location of 2 exits from Materials 822 | -10/Materials | Learned location of 2 exits from Mines 859 | -10/Materials | Repaired Grenade Launcher 946 | -10/Materials | Entered Mines 966 | -10/Mines | YI-UF0 nonchalantly dropped a Grenade Launcher on the ground 1014 | -10/Mines | Core integrity fell below 50% 1078 | -10/Mines | Destroyed YI-UF0 1079 | -10/Mines | Core integrity fell below 20% 1105 | -10/Mines | Lost 3 parts (1p1u1w) 1134 | -10/Mines | Found a damaged Exp. Sensor Array with a note attached 1136 | -10/Mines | Found Prototype Device 1166 | -10/Mines | Learned Materials trap positions 1173 | -10/Mines | Identified Exp. Sensor Array 1234 | -10/Mines | A weapon hastily lodged in a ceiling crevice suddenly fell to the ground 1435 | -10/Mines | Entered Materials 1435 | -9/Materials | Evolved 2 slots: Propulsion x1, Utility x1 1436 | -9/Materials | Identified exit to Mines 1437 | -9/Materials | Loaded intel: 22 trap records 1918 | -9/Materials | Identified exit to Materials 1957 | -9/Materials | Learned location of Zion (-6) 1994 | -9/Materials | Central database locked down 2018 | -9/Materials | Loaded intel: 2 repair station locations 2044 | -9/Materials | Build established: Scavenger-Mutant 2807 | -9/Materials | Build established: Mutant 3063 | -9/Materials | Entered Mines 3116 | -9/Mines | Assembled infested the area 3121 | -9/Mines | Assisted by a Guerilla fighting off Assembled 3210 | -9/Mines | Discovered exit to Materials (range 8) 3218 | -9/Mines | Found the Drone Emporium 3224 | -9/Mines | Found Prototype Device 3224 | -9/Mines | Identified Splice Drone Bay 3240 | -9/Mines | Discovered exit to Materials (range 34) 3293 | -9/Mines | Lost 4 allies 3349 | -9/Mines | Assisted by bots powering up and referring to "LRC-V3" 3517 | -9/Mines | Received a Rocket Launcher from a helpful Derelict 3527 | -9/Mines | Learned Materials garrison access intel 3668 | -9/Mines | Deemed a non-threat by the Exiles lab entrance 3668 | -9/Mines | Discovered new exit (range 5) 3686 | -9/Mines | Entered Exiles 3686 | -9/Exiles | Accompanied by 3 allies 3712 | -9/Exiles | Met 8R-AWN 3729 | -9/Exiles | Met EX-HEX 3760 | -9/Exiles | Met EX-BIN 3772 | -9/Exiles | Aligned with FarCom system 3773 | -9/Exiles | Given EX-Vault access code 3796 | -9/Exiles | Opened EX-Vault 3804 | -9/Exiles | Found Latent Energy Streamer 3824 | -9/Exiles | Warned to stay clear of 0b10 Research branches 3854 | -9/Exiles | Met EX-DEC 3892 | -9/Exiles | Discovered new exit (range 10) 3926 | -9/Exiles | Left Exiles lab with Latent Energy Streamer 3926 | -9/Exiles | Entered Mines 3926 | -8/Mines | Accompanied by 3 allies 3929 | -8/Mines | Core integrity fell below 50% 4150 | -8/Mines | Lost 3 allies 4252 | -8/Mines | Discovered exit to Materials (range 10) 4819 | -8/Mines | Entered Materials 4819 | -8/Materials | Evolved 2 slots: Propulsion x1, Utility x1 4820 | -8/Materials | Loaded intel: 1 garrison access location 4995 | -8/Materials | Identified exit to Garrison 5000 | -8/Materials | Entered Garrison 5006 | -8/Garrison | Discovered new exit (range 51) 5006 | -8/Garrison | Discovered new exit (range 38) 5006 | -8/Garrison | Discovered new exit (range 74) 5030 | -8/Garrison | Triggered checkpoint 5037 | -8/Garrison | Garrison Relay disabled 5100 | -8/Garrison | Triggered checkpoint 5112 | -8/Garrison | Triggered checkpoint 5114 | -8/Garrison | Triggered checkpoint 5172 | -8/Garrison | Build established: Scavenger-Gladiator 5237 | -8/Garrison | Lost 5 parts (1p2n2u) 5246 | -8/Garrison | Triggered checkpoint 5423 | -8/Garrison | Installed Relay Interface Framework 5451 | -8/Garrison | Garrison Relay disabled 5659 | -8/Garrison | Rescued a captive Derelict 5682 | -8/Garrison | Expanded RIF knowledge: Structural Interface 5750 | -8/Garrison | Triggered checkpoint 5880 | -8/Garrison | Lost 3 parts (1n1u1w) 5905 | -8/Garrison | Identified exit to Materials 5927 | -8/Garrison | Entered Materials 5972 | -8/Materials | Repaired Hammer+ 6014 | -8/Materials | Core integrity fell below 50% 6073 | -8/Materials | Discovered new exit (range 16) 6153 | -8/Materials | Central database locked down 6288 | -8/Materials | Build established: Bothacker-Sprinter 6314 | -8/Materials | Identified exit to Garrison 6314 | -8/Materials | Entered Garrison 6361 | -8/Garrison | Discovered new exit (range 12) 6362 | -8/Garrison | Learned Factory security intel 6370 | -8/Garrison | Triggered checkpoint 6383 | -8/Garrison | Garrison Relay disabled 6400 | -8/Garrison | Rescued a captive Derelict 6486 | -8/Garrison | Triggered checkpoint 6530 | -8/Garrison | Discovered new exit (range 10) 6566 | -8/Garrison | Triggered checkpoint 6619 | -8/Garrison | Core integrity fell below 20% 6639 | -8/Garrison | Entered Factory 6639 | -7/Factory | Evolved 2 slots: Utility x2 6640 | -7/Factory | Identified exit to Storage 6785 | -7/Factory | Lost 3 parts (3n) 7017 | -7/Factory | Sucked down chute 7017 | -7/Factory | Entered Waste 7018 | -7/Waste | Met a frightened Derelict 7039 | -7/Waste | Warlord forces began an assault 7121 | -7/Waste | Spotted C-40 Crusher 7123 | -7/Waste | Spotted C-40 Crusher 7123 | -7/Waste | Spotted C-40 Crusher 7135 | -7/Waste | Allies destroyed C-40 Crusher 7139 | -7/Waste | Spotted C-40 Crusher 7143 | -7/Waste | Allies destroyed C-40 Crusher 7158 | -7/Waste | Allies destroyed C-40 Crusher 7164 | -7/Waste | Spotted C-40 Crusher 7168 | -7/Waste | Allies destroyed C-40 Crusher 7172 | -7/Waste | Allies destroyed C-40 Crusher 7193 | -7/Waste | Spotted C-40 Crusher 7198 | -7/Waste | Lost 11 allies 7217 | -7/Waste | Build established: Hacker-Mutant 7234 | -7/Waste | Allies destroyed C-40 Crusher 7271 | -7/Waste | Discovered new exit (range 12) 7337 | -7/Waste | Entered Factory 7337 | -7/Factory | Accompanied by 7 allies 7383 | -7/Factory | Garrison activated, responded to threat 7483 | -7/Factory | Lost 4 allies 7692 | -7/Factory | Fabricated Imp. Linear Gravjet (x2) 8069 | -7/Factory | Cargo convoy interrupted 8123 | -7/Factory | Found Exp. Thermic Cannon 8344 | -7/Factory | Identified exit to Lower Caves 8375 | -7/Factory | Identified exit to Garrison 8377 | -7/Factory | Entered Garrison 8394 | -7/Garrison | Garrison Relay disabled 8451 | -7/Garrison | Discovered new exit (range 3) 8545 | -7/Garrison | Triggered checkpoint 8549 | -7/Garrison | Triggered checkpoint 8574 | -7/Garrison | Destroyed 11 combat bots 8613 | -7/Garrison | Discovered new exit (range 9) 8634 | -7/Garrison | Found embedded Infiltrators 8638 | -7/Garrison | Garrison Relay disabled 8653 | -7/Garrison | Triggered checkpoint 8673 | -7/Garrison | Triggered checkpoint 8752 | -7/Garrison | Garrison Relay disabled 8767 | -7/Garrison | Discovered new exit (range 15) 8781 | -7/Garrison | Triggered checkpoint 8800 | -7/Garrison | Rescued a captive Derelict 8845 | -7/Garrison | Triggered checkpoint 8892 | -7/Garrison | Expanded RIF knowledge: Zone Cloak 8905 | -7/Garrison | Discovered new exit (range 16) 8914 | -7/Garrison | Spotted B-75 Beast 8946 | -7/Garrison | Triggered checkpoint 8975 | -7/Garrison | Destroyed B-75 Beast 8987 | -7/Garrison | Lost 5 allies 9030 | -7/Garrison | Lost 4 parts (1p2n1u) 9242 | -7/Garrison | Garrison Relay disabled 9367 | -7/Garrison | Entered Factory 9468 | -7/Factory | Build established: Scavenger-Mutant 9644 | -7/Factory | Identified exit to Factory 9668 | -7/Factory | Central database locked down 9799 | -7/Factory | Found Prototype Launcher 9799 | -7/Factory | Identified Rocket Array 9875 | -7/Factory | Fabricated System Restoration Module (x2) 9877 | -7/Factory | Unchained authorized (QV-33N) 10004 | -7/Factory | Core integrity fell below 50% 10018 | -7/Factory | Entered Storage 10019 | -7/Storage | Identified exit to Recycling 10052 | -7/Storage | Build established: Hacker-Mutant 10187 | -7/Storage | Central database locked down 10262 | -7/Storage | Identified exit to Garrison 10307 | -7/Storage | Found Prototype Launcher 10307 | -7/Storage | Identified Gui. Missile Launcher 10475 | -7/Storage | Met a pair of Derelict thieves 10570 | -7/Storage | Entered Garrison 10570 | -7/Garrison | Accompanied by 1 ally 10589 | -7/Garrison | Discovered exit to Recycling (range 66) 10589 | -7/Garrison | Discovered exit to Recycling (range 41) 10589 | -7/Garrison | Discovered exit to Recycling (range 55) 10589 | -7/Garrison | Learned Recycling security intel 10602 | -7/Garrison | H-XX Assembler disabled 10616 | -7/Garrison | Found embedded Infiltrators 10634 | -7/Garrison | Triggered checkpoint 10643 | -7/Garrison | Garrison Relay disabled 10730 | -7/Garrison | Triggered checkpoint 10732 | -7/Garrison | Triggered checkpoint 10774 | -7/Garrison | Triggered checkpoint 10885 | -7/Garrison | Expanded RIF knowledge: Watcher Feeds 10928 | -7/Garrison | Entered Recycling 10929 | -7/Recycling | Identified exit to Factory 11049 | -7/Recycling | Scanned before Scraplab entrance 11342 | -7/Recycling | Identified exit to Scraptown 11432 | -7/Recycling | Learned location of 2 exits from Archives 11464 | -7/Recycling | Learned location of Upper Caves (-4) 11484 | -7/Recycling | Learned location of 2 exits from Upper Caves 11496 | -7/Recycling | Learned location of 1 exit from Extension 11498 | -7/Recycling | Learned 4 Extension zone layouts 11509 | -7/Recycling | Learned location of 2 exits from Factory 11527 | -7/Recycling | Angered Scraplab inhabitants 11528 | -7/Recycling | Learned location of 1 exit from Proximity Caves 11542 | -7/Recycling | Build established: Commander-Mutant 11558 | -7/Recycling | Learned location of Lower Caves (-7) 11598 | -7/Recycling | Learned location of Proximity Caves (-3) 11852 | -7/Recycling | Entered Factory 11852 | -5/Factory | Accompanied by 2 allies 11852 | -5/Factory | Evolved 4 slots: Power x1, Propulsion x1, Utility x1, Weapon x1 11853 | -5/Factory | Identified exit to Upper Caves 11853 | -5/Factory | Identified exit to Factory 11925 | -5/Factory | Build established: Hacker-Mutant 12065 | -5/Factory | Repaired Cld. Airjet 12152 | -5/Factory | Search patrols dispatched 12312 | -5/Factory | Fabricated Imp. Linear Gravjet (x2) 12376 | -5/Factory | Build established: Hacker-Skirmisher 12452 | -5/Factory | Search patrols dispatched 12631 | -5/Factory | Discovered exit to Factory (range 10) 12960 | -5/Factory | Fabricated System Restoration Module? 13285 | -5/Factory | Repaired Mic. Nuclear Core+? 13554 | -5/Factory | Identified exit to Garrison 13652 | -5/Factory | First assault squad dispatched 13665 | -5/Factory | Cargo convoy interrupted 13748 | -5/Factory | Build established: Scientist-Skirmisher 13758 | -5/Factory | Discovered exit to Factory (range 10) 13934 | -5/Factory | Lost 3 parts (2n1u) 13992 | -5/Factory | Found Exp. EM Shield 14011 | -5/Factory | Entered Garrison 14018 | -5/Garrison | Expanded RIF knowledge: Autoassimilate 14040 | -5/Garrison | Learned Factory security intel 14121 | -5/Garrison | Triggered checkpoint 14122 | -5/Garrison | Garrison Relay disabled 14134 | -5/Garrison | Spotted B-75 Beast 14142 | -5/Garrison | Triggered checkpoint 14190 | -5/Garrison | Assimilated Beast 6a with formatsys_high 14215 | -5/Garrison | Triggered checkpoint 14237 | -5/Garrison | Discovered exit to Factory (range 15) 14243 | -5/Garrison | Triggered checkpoint 14269 | -5/Garrison | Build established: Sprinter 14433 | -5/Garrison | Discovered exit to Factory (range 18) 14433 | -5/Garrison | Discovered exit to Factory (range 58) 14433 | -5/Garrison | Discovered exit to Factory (range 80) 14535 | -5/Garrison | Found Quantum Capacitor 14553 | -5/Garrison | Triggered checkpoint 14607 | -5/Garrison | Rewired Executioner 14608 | -5/Garrison | Rewired Executioner 14762 | -5/Garrison | Garrison Relay disabled 14765 | -5/Garrison | Spotted B-75 Beast 14795 | -5/Garrison | Allies destroyed B-75 Beast 14797 | -5/Garrison | Found Prototype Device 14797 | -5/Garrison | Identified Adv. Kinecellerator 14845 | -5/Garrison | Garrison Relay disabled 14851 | -5/Garrison | Triggered checkpoint 14910 | -5/Garrison | Garrison Relay disabled 15045 | -5/Garrison | Entered Factory 15045 | -4/Factory | Accompanied by 4 allies 15045 | -4/Factory | Evolved 2 slots: Propulsion x1, Utility x1 15090 | -4/Factory | Build established: Scavenger-Sprinter 15129 | -4/Factory | Garrison activated, responded to threat 15171 | -4/Factory | Found Prototype Processor 15171 | -4/Factory | Identified Exp. Targeting Computer 15173 | -4/Factory | Found Prototype Processor 15173 | -4/Factory | Identified Exp. Core Analyzer 15190 | -4/Factory | Found Adv. Kinecellerator 15263 | -4/Factory | Discovered new exit (range 14) 15269 | -4/Factory | Lost 3 allies 15295 | -4/Factory | First assault squad dispatched 15546 | -4/Factory | Discovered new exit (range 10) 15731 | -4/Factory | Discovered new exit (range 26) 15871 | -4/Factory | Repaired Mni. Fusion Reactor 15989 | -4/Factory | Identified exit to Upper Caves 15989 | -4/Factory | Identified exit to Extension 15989 | -4/Factory | Identified exit to Armory 16068 | -4/Factory | Discovered new exit (range 16) 16170 | -4/Factory | Discovered new exit (range 4) 16325 | -4/Factory | Sucked down chute 16325 | -4/Factory | Entered Waste 16335 | -4/Waste | Found Prototype Reactor 16336 | -4/Waste | Identified Zero-point Reactor 16340 | -4/Waste | EMP discharged 16342 | -4/Waste | Spotted C-40 Crusher 16342 | -4/Waste | Spotted C-40 Crusher 16342 | -4/Waste | Spotted C-40 Crusher 16350 | -4/Waste | 1 allies followed down the chute 16370 | -4/Waste | Spotted C-40 Crusher 16377 | -4/Waste | Spotted C-40 Crusher 16384 | -4/Waste | Spotted C-40 Crusher 16386 | -4/Waste | Discovered new exit (range 13) 16389 | -4/Waste | Found Prototype Device 16389 | -4/Waste | Identified Exp. Thermal Defense Suite 16404 | -4/Waste | Entered Factory 16566 | -4/Factory | Discovered exit to Extension (range 16) 16663 | -4/Factory | Garrison activated, responded to threat 16705 | -4/Factory | Discovered exit to Extension (range 13) 16752 | -4/Factory | Discovered exit to Upper Caves (range 16) 16960 | -4/Factory | Discovered new exit (range 7) 17010 | -4/Factory | System corruption reached 10% 17179 | -4/Factory | Discovered new exit (range 12) 17180 | -4/Factory | Discovered new exit (range 6) 17281 | -4/Factory | Entered Extension 17282 | -4/Extension | Identified exit to Research 17321 | -4/Extension | Rescued a captive Derelict 17326 | -4/Extension | Rescued A7 17331 | -4/Extension | Disrupted transfer network 17351 | -4/Extension | Energy Cycler disabled 17352 | -4/Extension | Rescued a captive Derelict 17354 | -4/Extension | Rescued a captive Derelict 17354 | -4/Extension | Rescued a captive Derelict 17355 | -4/Extension | Rescued a captive Derelict 17355 | -4/Extension | Rescued a captive Derelict 17355 | -4/Extension | Rescued a captive Derelict 17356 | -4/Extension | Rescued a captive Derelict 17360 | -4/Extension | Rescued a captive Derelict 17364 | -4/Extension | Rescued a captive Derelict 17385 | -4/Extension | Destroyed 7 combat bots 17686 | -4/Extension | Destroyed B-86 Titan 17709 | -4/Extension | Spotted B-86 Titan 17719 | -4/Extension | Allies destroyed B-86 Titan 17781 | -4/Extension | First assault squad dispatched 17872 | -4/Extension | Destroyed 8 combat bots 17940 | -4/Extension | Discovered exit to Research (range 10) 17940 | -4/Extension | Discovered new exit (range 6) 17990 | -4/Extension | Entered Cetus 17990 | -4/Cetus | Accompanied by 2 allies (A7) 17995 | -4/Cetus | Acquired a Cetus Manufacturing Module code from A7 17999 | -4/Cetus | Spotted Cetus Guard 18006 | -4/Cetus | Destroyed Cetus Guard 18010 | -4/Cetus | Spotted Cetus Guard 18011 | -4/Cetus | Destroyed Cetus Guard 18017 | -4/Cetus | Spotted Cetus Guard 18019 | -4/Cetus | Destroyed Cetus Guard 18070 | -4/Cetus | Started Cetus Manufacturing Module 18090 | -4/Cetus | Escorted A7 to Cetus Mainframe 18095 | -4/Cetus | Manufactured an Enhanced Grunt 18101 | -4/Cetus | Discovered new exit (range 15) 18120 | -4/Cetus | Manufactured an Enhanced Grunt 18132 | -4/Cetus | Spotted Cetus Guard 18132 | -4/Cetus | Spotted Cetus Guard 18145 | -4/Cetus | Manufactured an Enhanced Grunt 18166 | -4/Cetus | Destroyed Cetus Guard 18170 | -4/Cetus | Manufactured an Enhanced Grunt 18173 | -4/Cetus | Destroyed Cetus Guard 18195 | -4/Cetus | Manufactured an Enhanced Grunt 18204 | -4/Cetus | Discovered exit to Research (range 15) 18212 | -4/Cetus | Met Revision 17 18376 | -4/Cetus | Murdered A7 18377 | -4/Cetus | Extracted ID and sensor layout for unrecognized location from A7's data core 18379 | -4/Cetus | Found Prototype Protection 18380 | -4/Cetus | Identified Med. Regenerative Plating 18430 | -4/Cetus | Entered Archives 18430 | -4/Archives | Accompanied by 6 allies 18431 | -4/Archives | Identified exit to Hub_04(d) 18558 | -4/Archives | Discovered exit to Hub_04(d) (range 16) 19649 | -4/Archives | Entered Hub_04(d) 19649 | -4/Hub_04(d) | Accompanied by 6 allies 19651 | -4/Hub_04(d) | Discovered exit to Research (range 11) 19659 | -4/Hub_04(d) | Network Hub disabled 19659 | -4/Hub_04(d) | Network Hub disabled 19663 | -4/Hub_04(d) | Spotted Lightning 19663 | -4/Hub_04(d) | Spotted Lightning 19663 | -4/Hub_04(d) | Spotted Lightning 19663 | -4/Hub_04(d) | Spotted Lightning 19664 | -4/Hub_04(d) | Spotted Lightning 19664 | -4/Hub_04(d) | Spotted Lightning 19664 | -4/Hub_04(d) | Network Hub disabled 19676 | -4/Hub_04(d) | Garrison activated, responded to threat 19683 | -4/Hub_04(d) | Destroyed Lightning 19713 | -4/Hub_04(d) | Identified exit to Garrison 19713 | -4/Hub_04(d) | Entered Garrison 19718 | -4/Garrison | Lost 6 allies 19723 | -4/Garrison | Destroyed 7 combat bots 19738 | -4/Garrison | Expanded RIF knowledge: Autoassimilate 19739 | -4/Garrison | Lost 3 parts (3n) 19813 | -4/Garrison | Garrison Relay disabled 19833 | -4/Garrison | Spotted B-86 Titan 19836 | -4/Garrison | Triggered checkpoint 19915 | -4/Garrison | Triggered checkpoint 19935 | -4/Garrison | Lost 3 parts (2n1u) 19976 | -4/Garrison | Destroyed B-86 Titan 20250 | -4/Garrison | Discovered exit to Research (range 10) 20276 | -4/Garrison | Build established: Scavenger-Tank 20311 | -4/Garrison | Triggered checkpoint 20325 | -4/Garrison | Garrison Relay disabled 20401 | -4/Garrison | Triggered checkpoint 20547 | -4/Garrison | Destroyed 8 combat bots 20563 | -4/Garrison | Discovered exit to Research (range 5) 20657 | -4/Garrison | Learned Research security intel 20687 | -4/Garrison | Triggered checkpoint 20705 | -4/Garrison | Garrison Relay disabled 20871 | -4/Garrison | Discovered exit to Research (range 10) 20887 | -4/Garrison | Triggered checkpoint 20922 | -4/Garrison | Garrison Relay disabled 20936 | -4/Garrison | Lost 4 allies 20991 | -4/Garrison | Triggered checkpoint 21283 | -4/Garrison | Entered Research 21283 | -3/Research | Evolved 2 slots: Propulsion x1, Utility x1 21483 | -3/Research | Revision forces began assault on 0b10 21519 | -3/Research | Discovered new exit (range 15) 21530 | -3/Research | Met up with Revision 17++ 21651 | -3/Research | Found Prototype Processor 21651 | -3/Research | Identified Exp. Signal Interpreter 21742 | -3/Research | Discovered new exit (range 67) 21864 | -3/Research | Spotted B-86 Titan 21983 | -3/Research | Research terminal network offline 22111 | -3/Research | Found Gamma Bomb Array 22180 | -3/Research | Central database locked down 22570 | -3/Research | Build established: Scavenger-Mutant 22612 | -3/Research | Identified exit to Research 22865 | -3/Research | Spotted Striker 22865 | -3/Research | Spotted Executioner 22877 | -3/Research | Destroyed Striker 22901 | -3/Research | Destroyed Executioner 22978 | -3/Research | Found Prototype Device 22978 | -3/Research | Identified Exp. Shield Generator 23206 | -3/Research | Identified exit to Garrison 23206 | -3/Research | Entered Garrison 23214 | -3/Garrison | Triggered checkpoint 23522 | -3/Garrison | Triggered checkpoint 23534 | -3/Garrison | Garrison Relay disabled 23573 | -3/Garrison | Expanded RIF knowledge: Command Fork 23601 | -3/Garrison | Spotted B-86 Titan 23606 | -3/Garrison | Triggered checkpoint 23614 | -3/Garrison | Triggered checkpoint 23633 | -3/Garrison | Triggered checkpoint 23670 | -3/Garrison | Discovered new exit (range 5) 23692 | -3/Garrison | Triggered checkpoint 23717 | -3/Garrison | Garrison Relay disabled 23818 | -3/Garrison | Triggered checkpoint 23819 | -3/Garrison | Discovered new exit (range 10) 23848 | -3/Garrison | Garrison Relay disabled 23864 | -3/Garrison | Discovered new exit (range 30) 23864 | -3/Garrison | Discovered new exit (range 75) 23864 | -3/Garrison | Discovered new exit (range 69) 23900 | -3/Garrison | Build established: Scavenger-Gunner 23924 | -3/Garrison | Found Relay Coupler [Proto] 23964 | -3/Garrison | Entered Testing 23965 | -3/Testing | Maximum security lockdown engaged 24034 | -3/Testing | Discovered exit to Research (range 10) 24039 | -3/Testing | Entered Research 24039 | -2/Research | Evolved 2 slots: Utility x2 24147 | -2/Research | Unchained authorized (6S-H0T) 24171 | -2/Research | Found Prototype Device 24171 | -2/Research | Identified Adv. Particle Accelerator 24187 | -2/Research | Exiles provided nearest exit location to -1/Access 24191 | -2/Research | Crushed by falling debris 24289 | -2/Research | First assault squad dispatched 24327 | -2/Research | Lost 3 parts (3u) 24340 | -2/Research | Build established: Scavenger-Skirmisher 24433 | -2/Research | System corruption reached 10% 24458 | -2/Research | Entered Access 24458 | -1/Access | Evolved 2 slots: Propulsion x1, Utility x1 24478 | -1/Access | Found Quantum Capacitor 24487 | -1/Access | Lost 21 parts (4p6n7u4w) 24618 | -1/Access | Identified exit to Surface 24689 | -1/Access | Build established: Mutant 25093 | -1/Access | System corruption reached 10% 25170 | -1/Access | Lost 11 parts (2p4n2u3w) 25178 | -1/Access | Core integrity fell below 50% 25181 | -1/Access | System corruption reached 30% 25191 | -1/Access | Released all parts (3) 25219 | -1/Access | Lost 3 parts (1n2w) 25360 | -1/Access | Core integrity fell below 20% 25392 | -1/Access | Lost 3 parts (1n2w) 25509 | -1/Access | Destroyed by G-73 Enforcer with Heavy Laser Last Messages --------------- 25497_ U-05 Engineer lays Concrete. 25499_ ALERT: Construction progress impeded, dispatching reinforcements to local area. 25499_ U-05 Engineer lays Concrete. 25500_ U-05 Engineer builds a Wall. 25500_ U-05 Engineer lays Concrete. 25501_ G-73 Enforcer IFF system glitched. 25501_ U-05 Engineer destroyed. 25502_ U-05 Engineer lays Concrete. 25504_ G-73 Enforcer suffers critical hit (Destroy). 25504_ Destroyed Phase Gun. 25504_ Linear Gravjet+ destroyed. 25504_ U-05 Engineer lays Concrete. 25506_ U-05 Engineer builds a Wall. 25506_ U-05 Engineer lays Concrete. 25508_ Adv. Heat Sink fried. 25508_ G-73 Enforcer destroyed. 25508_ U-05 Engineer lays Concrete. [Achievement: Superachiever] Map ----- +----------------------------------------------------+ | ?????????????????????????????????????????????????? | | ?????????????????????????????????????????????????? | | ?????????????????????????????????????????????????? | | ?????????????????????????????????????????????????? | | ?????????????????????????????????????????????????? | | ?????????????????????????????????????????????????? | | ?????????????????????????????????????????????????? | | ?????????????????????????????????????????????????? | | ?????????????????????????????????????????????????? | | ?????????????????????????????????????????????????? | | ?????????????????????????????????????????????????? | | ????????????? ???????????????????????????????????? | | ????????????? ?????????????